{"text_format":"1","workbook":"xlsx","n_sheets":19,"sheets":["TEMPLATE Zahlungsantrag","Zahlungsantrag LEW14-20","TABLE Fördergeber","TEMPLATE Auswahl Belegaufst.","Auswahl Belegaufstellungen","Übersicht","TEMPLATE Übersicht","TEMPLATE Invest & Sachkosten","TEMPLATE Export LEW Inv&Sachk.","TABLE Units","TEMPLATE Standardkosten","TEMPLATE Export LEW Stdkosten","TEMPLATE Unbare Sachleistungen","TEMPLATE Export LEW Unbare Sach","TEMPLATE Personalkosten","Notizen","TEMPLATE Notizen","TABLE Beschäftigungsgruppen","TABLE Gehaltsgrenzen"],"not_rendered":{"charts":0,"images":29,"macros":1,"external_links":0,"defined_names":675,"comments":1,"pivot_tables":0},"unopened":[],"bounds":{"document_bytes":16777216,"sheet_cells":100000,"rows_first":2000,"rows_last":500,"rows_between":2000,"halvings":0,"cell_chars":16384,"cell_head_chars":4096},"cells_cut":0,"cells_raw":0,"read":"whole","date_system":"1900"}

{"sheet":"TEMPLATE Zahlungsantrag","index":0,"n_rows":235,"n_cols":40,"rows_kept":235,"cut":false,"hidden":true,"merged":[[128,1,128,38],[6,0,6,38],[7,0,7,38],[8,0,8,38],[10,0,10,22],[10,24,10,38],[0,0,4,8],[0,9,0,12],[0,13,4,38],[1,9,1,12],[2,9,2,12],[3,9,3,12],[4,9,4,12],[30,0,30,38],[31,1,31,7],[31,8,31,24],[31,26,31,30],[26,0,26,38],[28,0,28,11],[11,0,11,22],[11,24,17,38],[13,0,13,15],[17,0,17,13],[17,15,17,17],[28,12,28,21],[28,23,28,30],[28,31,28,38],[21,0,21,38],[22,0,22,38],[24,0,24,11],[24,12,24,38],[19,0,19,38],[15,0,15,7],[15,8,15,10],[15,13,15,20],[36,1,36,7],[36,8,36,24],[36,26,36,30],[33,0,33,38],[34,1,34,7],[34,8,34,24],[34,26,34,30],[41,8,41,24],[41,26,41,31],[41,32,41,38],[38,0,38,38],[39,1,39,7],[39,8,39,38],[41,1,41,7],[66,5,66,38],[60,0,60,11],[60,12,60,38],[54,0,54,11],[50,0,50,7],[50,8,50,24],[50,26,50,30],[52,0,52,11],[52,12,52,38],[58,0,58,11],[58,12,58,38],[42,0,43,38],[44,1,44,7],[44,8,44,38],[56,12,56,38],[48,26,48,30],[56,0,56,11],[46,1,46,7],[46,8,46,38],[48,0,48,7],[48,8,48,24],[68,22,68,30],[82,0,82,24],[80,29,80,32],[76,29,76,34],[80,0,80,24],[80,26,80,27],[76,8,76,9],[76,17,76,18],[54,12,54,38],[72,0,72,38],[74,2,74,9],[74,11,74,18],[68,31,68,38],[70,0,70,38],[74,20,74,27],[74,29,74,36],[68,0,68,6],[68,7,68,20],[62,0,62,38],[66,0,66,4],[64,0,64,3],[64,4,64,24],[64,26,64,29],[64,30,64,38],[76,35,76,36],[78,0,78,19],[78,22,78,23],[78,24,78,28],[78,30,78,31],[78,32,78,36],[76,11,76,16],[76,26,76,27],[76,20,76,25],[76,2,76,7],[88,30,88,31],[88,35,88,36],[90,0,90,24],[90,26,90,27],[88,0,88,24],[88,26,88,27],[80,34,80,37],[86,0,86,24],[86,26,86,27],[86,30,86,31],[82,35,82,36],[82,30,82,31],[86,35,86,36],[84,0,84,24],[84,26,84,27],[84,30,84,31],[84,35,84,36],[82,26,82,27],[94,30,94,31],[94,35,94,36],[92,0,92,24],[92,26,92,27],[90,30,90,31],[90,35,90,36],[92,30,92,31],[92,35,92,36],[94,0,94,24],[94,26,94,27],[100,0,100,24],[100,26,100,27],[102,30,102,31],[102,35,102,36],[102,0,102,24],[102,26,102,27],[100,30,100,31],[100,35,100,36],[96,0,96,6],[96,7,96,24],[98,29,98,32],[98,34,98,37],[98,0,98,24],[98,26,98,27],[104,0,104,24],[104,26,104,27],[104,30,104,31],[104,35,104,36],[121,0,121,6],[121,7,121,24],[110,0,110,24],[110,26,110,27],[113,0,115,24],[114,26,115,37],[110,28,110,37],[112,0,112,38],[117,28,117,35],[119,0,119,6],[133,0,133,6],[133,8,133,22],[133,24,133,38],[130,0,130,38],[132,0,132,6],[132,8,132,22],[132,24,132,38],[123,0,123,38],[106,0,106,24],[106,26,106,27],[106,30,106,31],[106,35,106,36],[117,7,117,24],[108,0,108,6],[108,7,108,24],[121,28,121,35],[117,0,117,6],[119,7,119,24],[119,28,119,35],[129,1,129,38],[124,1,124,38],[125,1,125,38],[126,1,126,38],[127,1,127,38]]}
[null,null,null,null,null,null,null,null,null,"Agrarmarkt Austria"]
[null,null,null,null,null,null,null,null,null,"Dresdner Straße 70",null,null,null,null,null,null,null,null,null,null,null,null,null,null,null,null,null,null,null,null,null,null,null,null,null,null,null,null,null,{"$f":"VLOOKUP(PaymAppl_IntentCode,ProjectTypeSponsors,2)","v":"BMLRT/LE1420/LD/EU"}]
[null,null,null,null,null,null,null,null,null,"A-1200 Wien",null,null,null,null,null,null,null,null,null,null,null,null,null,null,null,null,null,null,null,null,null,null,null,null,null,null,null,null,null,"BMLRT/LE1420/LD/EU"]
[null,null,null,null,null,null,null,null,null,"www.ama.at",null,null,null,null,null,null,null,null,null,null,null,null,null,null,null,null,null,null,null,null,null,null,null,null,null,null,null,null,null,3]
[null,null,null,null,null,null,null,null,null,"DVR: 0719838",null,null,null,null,null,null,null,null,null,null,null,null,null,null,null,null,null,null,null,null,null,null,null,null,null,null,null,null,null,"Logo-NOe"]
[]
["Zahlungsantrag"]
["zur Auszahlung einer Förderung eines Vorhabens  "]
["im Rahmen des Österreichischen Programms für ländliche Entwicklung 2014 - 2020",null,null,null,null,null,null,null,null,null,null,null,null,null,null,null,null,null,null,null,null,null,null,null,null,null,null,null,null,null,null,null,null,null,null,null,null,null,null,"X:\\Rita Kostenkalkulation\\Rita 2016-06-15\\Development\\Out\\Branch"]
[]
["Antragsnummer des betroffenen Vorhabens",null,null,null,null,null,null,null,null,null,null,null,null,null,null,null,null,null,null,null,null,null,null,null,"Eingangsvermerk (Einreich-/Bewilligende Stelle)"]
[]
[]
["Bei vorgelegter Abrechnung handelt es sich um die"]
[]
[null,null,null,null,null,null,null,null,null,null,null,null,null,null,null,null,null,null,null,null,null,null,null,null,null,null,null,null,null,null,null,null,null,null,null,null,null,null,null,1]
[]
["Der Gebietskörperschaftsanteil beträgt in %",null,null,null,null,null,null,null,null,null,null,null,null,null,null,null,null,null,null,null,null,null,null,null,null,null,null,null,null,null,null,null,null,null,null,null,null,null,null,{"$f":"IF(PaymAppl_PartialPaymSelect=1,IF(TRIM(PaymAppl_PartialPaymID)=\"\",\"\",\" / TZ \" & TRIM(PaymAppl_PartialPaymID)),\" / EndZ\")","v":""}]
[]
["Vorhaben"]
[]
["Code / Vorhabensart"]
["Bitte auswählen"]
[]
["Kurzbezeichnung des Vorhabens:"]
[]
["Angaben zum Förderungswerber/zur Förderungswerberin ",null,null,null,null,null,null,null,null,null,null,null,null,null,null,null,null,null,null,null,null,null,null,null,null,null,null,null,null,null,null,null,null,null,null,null,null,null,null,1]
[]
["Betriebs- bzw. Klientennummer:",null,null,null,null,null,null,null,null,null,null,null,null,null,null,null,null,null,null,null,null,null,null,"Vorsteuerabzugsberechtigt",null,null,null,null,null,null,null,null,null,null,null,null,null,null,null,{"$f":"IF(AN27=1,\"Ja\",\"Nein\")","v":"Ja"}]
[]
[null,null,null,null,null,null,null,null,null,null,null,null,null,null,null,null,null,null,null,null,null,null,null,null,null,null,null,null,null,null,null,null,null,null,null,null,null,null,null,1]
[null,"Titel, Name, Vorname",null,null,null,null,null,null,null,null,null,null,null,null,null,null,null,null,null,null,null,null,null,null,null,null,"Geburtsdatum",null,null,null,null,null,null,null,null,null,null,null,null,{"$f":"TRIM(PaymAppl_IndividualName)","v":""}]
[]
[]
[null,"Titel, Name, Vorname",null,null,null,null,null,null,null,null,null,null,null,null,null,null,null,null,null,null,null,null,null,null,null,null,"Geburtsdatum",null,null,null,null,null,null,null,null,null,null,null,null,{"$f":"IF(TRIM(PaymAppl_CoupleNameA)=\"\",\"???\",TRIM(PaymAppl_CoupleNameA))","v":"???"}]
[]
[null,"Titel, Name, Vorname",null,null,null,null,null,null,null,null,null,null,null,null,null,null,null,null,null,null,null,null,null,null,null,null,"Geburtsdatum",null,null,null,null,null,null,null,null,null,null,null,null,{"$f":"IF(TRIM(PaymAppl_CoupleNameB)=\"\",\"???\",TRIM(PaymAppl_CoupleNameB))","v":"???"}]
[]
["  "]
[null,"Name/Unternehmen",null,null,null,null,null,null,null,null,null,null,null,null,null,null,null,null,null,null,null,null,null,null,null,null,null,null,null,null,null,null,null,null,null,null,null,null,null,{"$f":"TRIM(PaymAppl_LegalEntityName)","v":""}]
[]
[null,"Gesellschaftsform",null,null,null,null,null,null,null,null,null,null,null,null,null,null,null,null,null,null,null,null,null,null,null,null,"ZVR/FB-Nr./GKZ"]
[]
[]
[null,"Name",null,null,null,null,null,null,null,null,null,null,null,null,null,null,null,null,null,null,null,null,null,null,null,null,null,null,null,null,null,null,null,null,null,null,null,null,null,{"$f":"TRIM(PaymAppl_PersonGroupName)","v":""}]
[]
[null,"Gesellschaftsform"]
[]
["Vertretungsbefugte/r",null,null,null,null,null,null,null,null,null,null,null,null,null,null,null,null,null,null,null,null,null,null,null,null,null,"Geburtsdatum"]
[]
["Vertretungsbefugte/r",null,null,null,null,null,null,null,null,null,null,null,null,null,null,null,null,null,null,null,null,null,null,null,null,null,"Geburtsdatum"]
[]
["Zustelladresse: Straße, Hausnr."]
[]
["Zustelladresse: PLZ, Ort"]
[]
["Betriebsadresse: Straße, Hausnr."]
[]
["Betriebsadresse: PLZ, Ort"]
[]
["Mobil-,Telefonnr./Email-/Internetadresse"]
[]
["Bankverbindung"]
[]
["IBAN",null,null,null,null,null,null,null,null,null,null,null,null,null,null,null,null,null,null,null,null,null,null,null,null,null,"BIC"]
[]
["ACHTUNG:\n",null,null,null,null,"Alle Zahlungen werden auf die letzte von Ihnen bekanntgegebene Bankverbindung überwiesen.\nIhr Auszahlungskonto können Sie jederzeit im eAMA unter KUNDENDATEN einsehen und ändern."]
[]
["Förderungswerber/in",null,null,null,null,null,null,{"$f":"IF(AN31=1,AN32,IF(AN31=2,AN35 & \"/\" & AN37,IF(AN31=3,AN40,IF(AN31=4,AN45,\"???\"))))","v":""},null,null,null,null,null,null,null,null,null,null,null,null,null,null,"Betriebs-/Klientennummer",null,null,null,null,null,null,null,null,{"$f":"IF(ISBLANK(M29),\"\",M29)","v":""}]
[]
["Zahlungsantrag (Seite 2)"]
[]
["eingereichte Kosten"]
[]
[null,null,"Belegbetrag brutto",null,null,null,null,null,null,null,null,"Belegbetrag netto",null,null,null,null,null,null,null,null,"eingereichte Kosten",null,null,null,null,null,null,null,null,"Einnahmen"]
[]
[null,null,null,null,null,null,null,null,"€",null,null,null,null,null,null,null,null,"€",null,null,null,null,null,null,null,null,"€",null,null,null,null,null,null,null,null,"€"]
[]
["genehmigter Zeitraum für die Kostenanerkennung",null,null,null,null,null,null,null,null,null,null,null,null,null,null,null,null,null,null,null,null,null,"von",null,null,null,null,null,null,null,"bis"]
[]
["Allgemeine Beilagen",null,null,null,null,null,null,null,null,null,null,null,null,null,null,null,null,null,null,null,null,null,null,null,null,null,"liegt \nbei",null,null,"wird \nnachgereicht",null,null,null,null,"nicht \nerforderlich"]
[]
["Abrechnungsbelege (Rechnungen, Honorarnoten, Jahreslohnkonten etc.)"]
[]
["Belegaufstellung - Investitionen und Sachaufwand"]
[]
["Belegaufstellung - unbare Eigenleistungen (=unbare Sachleistungen) "]
[]
["Belegaufstellung Personalkosten"]
[]
["Zeitaufzeichnungen, Tätigkeitsbeschreibungen"]
[]
["Zahlungsnachweis/e"]
[]
["Nachweis über die Einhaltung der Publizitätskriterien"]
[]
["Sonstige Beilage(n):"]
[]
["Vorhabensspezifische Beilagen, die spätestens mit der Endabrechnung vorgelegt werden  müssen: ",null,null,null,null,null,null,null,null,null,null,null,null,null,null,null,null,null,null,null,null,null,null,null,null,null,"liegt \nbei",null,null,"wird \nnachgereicht",null,null,null,null,"nicht \nerforderlich"]
[]
["Benutzungsbewilligung"]
[]
["Endbericht"]
[]
["Versichungsnachweis bei Investitionen in unbewegl. Investitionsgegenstände"]
[]
["Evaluierungsdatenblatt"]
[]
["Sonstige Beilage(n):"]
[]
["Angaben zu anderen Förderungen/Zuschüssen",null,null,null,null,null,null,null,null,null,null,null,null,null,null,null,null,null,null,null,null,null,null,null,null,null,null,null,"Keine weitere/n Förderung/en \nbzw. Zuschüsse"]
[]
["Im Rahmen d. Projektes wurde bei folgenden anderen Förderstellen um eine Förderung bzw. einen Zuschuss angesucht:"]
["Geben Sie hier die entsprechende Stelle sowie die/den beantragte(n)/genehmigten(n)/erhaltene(n) Förderung/Zuschuss an!"]
[null,null,null,null,null,null,null,null,null,null,null,null,null,null,null,null,null,null,null,null,null,null,null,null,null,null,"Förderung/Zuschuss im Ausmaß von "]
[]
[]
["Bund:",null,null,null,null,null,null,null,null,null,null,null,null,null,null,null,null,null,null,null,null,null,null,null,null,null,null,null,null,null,null,null,null,null,null,null,"€"]
[]
["Land:",null,null,null,null,null,null,null,null,null,null,null,null,null,null,null,null,null,null,null,null,null,null,null,null,null,null,null,null,null,null,null,null,null,null,null,"€"]
[]
["Gemeinde/n:",null,null,null,null,null,null,null,null,null,null,null,null,null,null,null,null,null,null,null,null,null,null,null,null,null,null,null,null,null,null,null,null,null,null,null,"€"]
[]
["Mit meiner Unterschrift bestätige ich, "]
[null,"-) dass ich alle Angaben im Zahlungsantrag und sämtlichen Beilagen mit bestem Wissen gemacht habe,"]
[null,"-) Abrechnungsbelege nicht in unzulässiger Weise zur Abrechnung einer bei einer anderen Abwicklungsstelle\n    beantragten Förderung eingebracht habe oder einreichen werde (unzulässige Mehrfachförderung)"]
[null,"-) die Beantragung einer mit der LE-Projektförderung kumulierbaren Förderung bei einer anderen Förderungs-\n    abwicklungsstelle der Bewilligenden Stelle gemeldet habe oder melden werde,"]
[null,"-) allen Verpflichtungen gegenüber der Bewilligenden Stelle (z.B. Meldeverpflichtung) nachgekommen bin,\n"]
[null,"-) dass alle Personen, deren Daten im Rahmen dieses Zahlungsantrages offengelegt wurden, von mir darüber\n    informiert wurden, dass eine Verarbeitung ihrer Daten durch die Zahlstelle und Bewilligende Stelle für Zwecke"]
[null,"    der Abwicklung und Kontrolle der Förderung erfolgt."]
["und ersuche um Auszahlung des entsprechenden Förderungsbetrages."]
[]
[]
["Ort, Datum",null,null,null,null,null,null,null,"Name in Blockbuchstaben",null,null,null,null,null,null,null,null,null,null,null,null,null,null,null,"Unterschrift bzw. firmenmäßige Zeichnung"]
[null,null,null,null,null,null,null,null,null,null,null,null,null,null,null,null,null,null,null,null,null,null,null,null,null,null,null,null,null,null,null,null,null,null,null,null,null,null,"RL/AMA v469.25 / Jan. 2022"]
[]
[]
[]
["Liste verfügbarer Vorhabensarten (für Pop-Up-Menu)"]
["Bitte auswählen"]
["M 1 A) - Wissenstransfer und Informationsmaßnahmen in der Land- und Forstwirtschaft - Landwirtschaft"]
["M 1 B) - Wissenstransfer und Informationsmaßnahmen in der Land- und Forstwirtschaft - Forstwirtschaft"]
[" - "]
["2.1.1. A) - Inanspruchnahme von Beratungsleistungen - Landwirtschaft"]
["2.1.1. B) - Inanspruchnahme von Beratungsleistungen - Forstwirtschaft"]
["2.1.1. C) - Inanspruchnahme von Beratungsleistungen - KMU"]
["2.3.1. - Ausbildung von BeraterInnen"]
[" - "]
["3.2.1. - Informations- und Absatzförderungsmaßnahmen"]
[" - "]
["4.1.1. - Investitionen in die landwirtschaftliche Erzeugung"]
["4.2.1. A) - Verarbeitung, Vermarktung und Entwicklung landwirtschaftlicher Erzeugnisse (Bewilligung AWS)"]
["4.2.1. B) - Verarbeitung, Vermarktung und Entwicklung landwirtschaftlicher Erzeugnisse (Bewilligung Bundesländer)"]
["4.3.1. - Investitionen in überbetriebliche Bewässerungsinfrastruktur"]
["4.3.2. - Investitionen in die Infrastruktur für die Entwicklung, Modernisierung und Anpassung der Forstwirtschaft"]
["4.4.1. - Nichtproduktive Investitionen – Ökologische Verbesserung von Gewässern in landwirtschaftlich geprägten Regionen"]
["4.4.2. - Nichtproduktive Investitionen – Investitionen zur Stabilisierung von Rutschungen"]
["4.4.3. - Nichtproduktive Investitionen – Ökologische Agrarinfrastruktur zur Flurentwicklung"]
[" - "]
["6.1.1. - Existenzgründungsbeihilfen für JunglandwirtInnen"]
["6.4.1. - Diversifizierung hin zu nichtlandwirtschaftlichen Tätigkeiten"]
["6.4.2. - Diversifizierung lw. und fw. Betriebe durch Energie aus nachwachsenden Rohstoffen sowie Energiedienstleistungen"]
["6.4.3. - Photovoltaik in der Landwirtschaft"]
["6.4.4. - Gründung von innovativen Kleinunternehmen im ländlichen Raum"]
["6.4.5. - Förderung von Nahversorgungsbetrieben einschließlich gewerblicher Beherbergungs- und Gastronomiebetriebe"]
[" - "]
["7.1.1. A) - Pläne und Entwicklungskonzepte zur Erhaltung des natürlichen Erbes - Naturschutz - Bund"]
["7.1.1. A) - Pläne und Entwicklungskonzepte zur Erhaltung des natürlichen Erbes - Naturschutz - Länder"]
["7.1.1. B) - Pläne und Entwicklungskonzepte zur Erhaltung des natürlichen Erbes - Nationalparks"]
["7.1.2. - Pläne und Entwicklungskonzepte zur Dorferneuerung"]
["7.1.3. - Lokale Agenda 21 - Bund"]
["7.1.3. - Lokale Agenda 21 - Länder"]
["7.2.1. - Ländliche Verkehrsinfrastruktur"]
["7.2.2. - Investitionen in erneuerbare Energien"]
["7.2.3. - Umsetzung von Klima- und Energieprojekten auf lokaler Ebene"]
["7.3.1. - Breitbandinfrastruktur in ländlichen Gebieten"]
["7.4.1. A) - Soziale Angelegenheiten - BMASK"]
["7.4.1. B) - Soziale Angelegenheiten - BMG"]
["7.4.2. - Klimafreundliche Mobilitätslösungen (klimaaktiv mobil)"]
["7.5.1. A) - Investitionen in kleine touristische Infrastruktur - BMLRT"]
["7.5.1. B) - Investitionen in kleine touristische Infrastruktur - Forst"]
["7.5.1. C) - Investitionen in kleine touristische Infrastruktur - Länder"]
["7.6.1. A) - Studien und Investitionen zur Erhaltung, Wiederherstellung und Verbesserung des natürlichen Erbes - Naturschutz - Bund "]
["7.6.1. A) - Studien und Investitionen zur Erhaltung, Wiederherstellung und Verbesserung des natürlichen Erbes - Naturschutz - Länder"]
["7.6.1. B) - Studien und Investitionen zur Erhaltung, Wiederherstellung und Verbesserung des natürlichen Erbes - Nationalparks"]
["7.6.1. C) - Studien und Investitionen zur Erhaltung, Wiederherstellung und Verbesserung des natürlichen Erbes - Forst - Bund"]
["7.6.1. C) - Studien und Investitionen zur Erhaltung, Wiederherstellung und Verbesserung des natürlichen Erbes - Forst - Länder"]
["7.6.2. - Umsetzung von Plänen zur Dorferneuerung und Gemeindeentwicklung"]
["7.6.3. - Erhaltung und Entwicklung der Kulturlandschaft"]
["7.6.4. - Überbetriebliche Maßnahmen für die Bereiche Wald und Schutz vor Naturgefahren"]
["7.6.5. - Stärkung der Potenziale des alpinen ländlichen Raums"]
[" - "]
["8.1.1. - Aufforstung und Anlage von Wäldern"]
["8.4.1. - Vorbeugung von Schäden und Wiederherstellung von Wäldern nach Naturkatastrophen und Katastrophenereignissen - Forstschutz"]
["8.5.1. - Investitionen zur Stärkung von Resistenz und ökologischem Wert des Waldes - Öffentlicher Wert & Schutz vor Naturgefahren"]
["8.5.2. - Investitionen zur Stärkung von Resistenz und ökologischem Wert des Waldes - Genetische Ressourcen"]
["8.5.3. - Investitionen zur Stärkung des ökologischen Werts der Waldökosysteme - Wald-Ökologie-Programm "]
["8.6.1. - Investitionen in Forsttechniken, Verarbeitung, Mobilisierung und Vermarktung forstwirtschaftlicher Erzeugnisse"]
["8.6.2. - Erstellung von waldbezogenen Plänen auf betrieblicher Ebene"]
[" - "]
["15.1.1. - Erhaltung von ökologisch wertvollen/seltenen Waldflächen /-gesellschaften"]
["15.2.1. - Erhaltung und Verbesserung der genetischen Ressourcen des Waldes"]
[" - "]
["16.01.1. - Unterstützung beim Aufbau & Betrieb operationeller Gruppen der EIP für lw. Produktivität & Nachhaltigkeit"]
["16.02.1. - Unterstützung bei der Entwicklung neuer Erzeugnisse, Verfahren & Technologien der Land-, Ernährungs- & Forstwirtschaft"]
["16.02.2. A) - Unterstützung bei der Entwicklung von innovativen Pilotprojekten im Tourismus - BMLRT"]
["16.02.2. B) - Unterstützung bei der Entwicklung von innovativen Pilotprojekten im Tourismus - Länder"]
["16.03.1. A) - Zusammenarbeit von kleinen WirtschaftsteilnehmerInnen - Arbeitsabläufe, Ressourcennutzung und Tourismusdienstleistungen "]
["16.03.1. A) - Zusammenarbeit von kleinen WirtschaftsteilnehmerInnen - Arbeitsabläufe, Ressourcennutzung und Tourismusdienstleistungen - BMLRT"]
["16.03.1. B) - Zusammenarbeit von kleinen WirtschaftsteilnehmerInnen - Arbeitsabläufe, Ressourcennutzung und Tourismusdienstleistungen - BMLRT"]
["16.03.1. C) - Zusammenarbeit von kleinen WirtschaftsteilnehmerInnen - Arbeitsabläufe, Ressourcennutzung und Tourismusdienstleistungen - Länder"]
["16.03.2. - Zusammenarbeit von Kleinstunternehmen im ländlichen Raum"]
["16.04.1. - Schaffung und Entwicklung von kurzen Versorgungsketten und lokalen Märkten sowie unterstützende Absatzförderung "]
["16.05.1. - Stärkung der horizontalen und vertikalen Zusammenarbeit zwischen AkteurInnen im forst- und wasserwirtschaftlichen Sektor"]
["16.05.2. A) - Stärkung der Zusammenarbeit von AkteurInnen und Strukturen zur Erhaltung des natürlichen Erbes & des Umweltschutzes - Naturschutz"]
["16.05.2. A) - Stärkung der Zusammenarbeit von AkteurInnen und Strukturen zur Erhaltung des natürlichen Erbes & des Umweltschutzes - Naturschutz - Länder"]
["16.05.2. B) - Stärkung der Zusammenarbeit von AkteurInnen und Strukturen zur Erhaltung des natürlichen Erbes & des Umweltschutzes - Umweltschutz"]
["16.05.2. C) - Stärkung der Zusammenarbeit von AkteurInnen und Strukturen zur Erhaltung des natürlichen Erbes & des Umweltschutzes - Nationalparks"]
["16.08.1. - Waldbezogene Pläne auf überbetrieblicher Ebene"]
["16.09.1. - Förderung horizontaler & vertikaler Zusammenarbeit lw. & fw. AkteurInnen zur Schaffung & Entwicklung v. Sozialleistungen - BMLRT"]
["16.10.1. - Einrichtung und Betrieb von Clustern - BMLRT"]
["16.10.2. - Einrichtung und Betrieb von Netzwerken - BMLRT"]
["16.10.3. - Zusammenarbeit: Erzeugergemeinschaften /-organisationen, Genossenschaften und Branchenverbände - BMLRT"]
[" - "]
["19.1.1. - Erstellung der lokalen Entwicklungsstrategie - Länder"]
["19.1.1. - Erstellung der lokalen Entwicklungsstrategie"]
["19.2.1. - Umsetzung der lokalen Entwicklungsstrategie - Länder"]
["19.2.1. - Umsetzung der lokalen Entwicklungsstrategie"]
["19.3.1. - Umsetzung von nationalen oder transnationalen Kooperationsprojekten - Länder"]
["19.3.1. - Umsetzung von nationalen oder transnationalen Kooperationsprojekten"]
["19.4.1. - Laufende Kosten des LAG-Managements und Sensibilisierung - Länder"]
["19.4.1. - Laufende Kosten des LAG-Managements und Sensibilisierung"]
[" - "]
["20.1. - Technische Hilfe (außer Netzwerk)"]
["20.2. - Technische Hilfe - Netzwerk"]

{"sheet":"Zahlungsantrag LEW14-20","index":1,"n_rows":235,"n_cols":40,"rows_kept":235,"cut":false,"hidden":false,"merged":[[133,0,133,6],[133,8,133,22],[133,24,133,38],[126,1,126,38],[127,1,127,38],[128,1,128,38],[129,1,129,38],[130,0,130,38],[132,0,132,6],[132,8,132,22],[132,24,132,38],[121,0,121,6],[121,7,121,24],[121,28,121,35],[123,0,123,38],[124,1,124,38],[125,1,125,38],[113,0,115,24],[114,26,115,37],[117,0,117,6],[117,7,117,24],[117,28,117,35],[119,0,119,6],[119,7,119,24],[119,28,119,35],[108,0,108,6],[108,7,108,24],[110,0,110,24],[110,26,110,27],[110,28,110,37],[112,0,112,38],[104,0,104,24],[104,26,104,27],[104,30,104,31],[104,35,104,36],[106,0,106,24],[106,26,106,27],[106,30,106,31],[106,35,106,36],[100,0,100,24],[100,26,100,27],[100,30,100,31],[100,35,100,36],[102,0,102,24],[102,26,102,27],[102,30,102,31],[102,35,102,36],[96,0,96,6],[96,7,96,24],[98,0,98,24],[98,26,98,27],[98,29,98,32],[98,34,98,37],[92,0,92,24],[92,26,92,27],[92,30,92,31],[92,35,92,36],[94,0,94,24],[94,26,94,27],[94,30,94,31],[94,35,94,36],[88,0,88,24],[88,26,88,27],[88,30,88,31],[88,35,88,36],[90,0,90,24],[90,26,90,27],[90,30,90,31],[90,35,90,36],[84,0,84,24],[84,26,84,27],[84,30,84,31],[84,35,84,36],[86,0,86,24],[86,26,86,27],[86,30,86,31],[86,35,86,36],[80,0,80,24],[80,26,80,27],[80,29,80,32],[80,34,80,37],[82,0,82,24],[82,26,82,27],[82,30,82,31],[82,35,82,36],[76,29,76,34],[76,35,76,36],[78,0,78,19],[78,22,78,23],[78,24,78,28],[78,30,78,31],[78,32,78,36],[76,2,76,7],[76,8,76,9],[76,11,76,16],[76,17,76,18],[76,20,76,25],[76,26,76,27],[70,0,70,38],[72,0,72,38],[74,2,74,9],[74,11,74,18],[74,20,74,27],[74,29,74,36],[66,0,66,4],[66,5,66,38],[68,0,68,6],[68,7,68,20],[68,22,68,30],[68,31,68,38],[58,0,58,11],[58,12,58,38],[60,0,60,11],[60,12,60,38],[62,0,62,38],[64,0,64,3],[64,4,64,24],[64,26,64,29],[64,30,64,38],[52,0,52,11],[52,12,52,38],[54,0,54,11],[54,12,54,38],[56,0,56,11],[56,12,56,38],[46,1,46,7],[46,8,46,38],[48,0,48,7],[48,8,48,24],[48,26,48,30],[50,0,50,7],[50,8,50,24],[50,26,50,30],[41,1,41,7],[41,8,41,24],[41,26,41,31],[41,32,41,38],[42,0,43,38],[44,1,44,7],[44,8,44,38],[36,1,36,7],[36,8,36,24],[36,26,36,30],[38,0,38,38],[39,1,39,7],[39,8,39,38],[30,0,30,38],[31,1,31,7],[31,8,31,24],[31,26,31,30],[33,0,33,38],[34,1,34,7],[34,8,34,24],[34,26,34,30],[24,0,24,11],[24,12,24,38],[26,0,26,38],[28,0,28,11],[28,12,28,21],[28,23,28,30],[28,31,28,38],[15,13,15,20],[17,0,17,13],[17,15,17,17],[19,0,19,38],[21,0,21,38],[22,0,22,38],[6,0,6,38],[7,0,7,38],[8,0,8,38],[10,0,10,22],[10,24,10,38],[11,0,11,22],[11,24,17,38],[13,0,13,15],[15,0,15,7],[15,8,15,10],[0,0,4,8],[0,9,0,12],[0,13,4,38],[1,9,1,12],[2,9,2,12],[3,9,3,12],[4,9,4,12]]}
[null,null,null,null,null,null,null,null,null,"Agrarmarkt Austria"]
[null,null,null,null,null,null,null,null,null,"Dresdner Straße 70",null,null,null,null,null,null,null,null,null,null,null,null,null,null,null,null,null,null,null,null,null,null,null,null,null,null,null,null,null,{"$f":"VLOOKUP(PaymAppl_IntentCode,ProjectTypeSponsors,2)","v":"BMLRT/LE1420/LD/EU"}]
[null,null,null,null,null,null,null,null,null,"A-1200 Wien",null,null,null,null,null,null,null,null,null,null,null,null,null,null,null,null,null,null,null,null,null,null,null,null,null,null,null,null,null,"BMLRT/LE1420/LD/EU"]
[null,null,null,null,null,null,null,null,null,"www.ama.at",null,null,null,null,null,null,null,null,null,null,null,null,null,null,null,null,null,null,null,null,null,null,null,null,null,null,null,null,null,3]
[null,null,null,null,null,null,null,null,null,"DVR: 0719838",null,null,null,null,null,null,null,null,null,null,null,null,null,null,null,null,null,null,null,null,null,null,null,null,null,null,null,null,null,"Logo-NOe"]
[]
["Zahlungsantrag"]
["zur Auszahlung einer Förderung eines Vorhabens  "]
["im Rahmen des Österreichischen Programms für ländliche Entwicklung 2014 - 2020",null,null,null,null,null,null,null,null,null,null,null,null,null,null,null,null,null,null,null,null,null,null,null,null,null,null,null,null,null,null,null,null,null,null,null,null,null,null,"X:\\Rita Kostenkalkulation\\Rita 2016-06-15\\Development\\Out\\Branch"]
[]
["Antragsnummer des betroffenen Vorhabens",null,null,null,null,null,null,null,null,null,null,null,null,null,null,null,null,null,null,null,null,null,null,null,"Eingangsvermerk (Einreich-/Bewilligende Stelle)"]
[]
[]
["Bei vorgelegter Abrechnung handelt es sich um die"]
[]
[null,null,null,null,null,null,null,null,null,null,null,null,null,null,null,null,null,null,null,null,null,null,null,null,null,null,null,null,null,null,null,null,null,null,null,null,null,null,null,1]
[]
["Der Gebietskörperschaftsanteil beträgt in %",null,null,null,null,null,null,null,null,null,null,null,null,null,null,null,null,null,null,null,null,null,null,null,null,null,null,null,null,null,null,null,null,null,null,null,null,null,null,{"$f":"IF(PaymAppl_PartialPaymSelect=1,IF(TRIM(PaymAppl_PartialPaymID)=\"\",\"\",\" / TZ \" & TRIM(PaymAppl_PartialPaymID)),\" / EndZ\")","v":""}]
[]
["Vorhaben"]
[]
["Code / Vorhabensart"]
["Bitte auswählen"]
[]
["Kurzbezeichnung des Vorhabens:"]
[]
["Angaben zum Förderungswerber/zur Förderungswerberin ",null,null,null,null,null,null,null,null,null,null,null,null,null,null,null,null,null,null,null,null,null,null,null,null,null,null,null,null,null,null,null,null,null,null,null,null,null,null,1]
[]
["Betriebs- bzw. Klientennummer:",null,null,null,null,null,null,null,null,null,null,null,null,null,null,null,null,null,null,null,null,null,null,"Vorsteuerabzugsberechtigt",null,null,null,null,null,null,null,null,null,null,null,null,null,null,null,{"$f":"IF(AN27=1,\"Ja\",\"Nein\")","v":"Ja"}]
[]
[null,null,null,null,null,null,null,null,null,null,null,null,null,null,null,null,null,null,null,null,null,null,null,null,null,null,null,null,null,null,null,null,null,null,null,null,null,null,null,1]
[null,"Titel, Name, Vorname",null,null,null,null,null,null,null,null,null,null,null,null,null,null,null,null,null,null,null,null,null,null,null,null,"Geburtsdatum",null,null,null,null,null,null,null,null,null,null,null,null,{"$f":"TRIM(PaymAppl_IndividualName)","v":""}]
[]
[]
[null,"Titel, Name, Vorname",null,null,null,null,null,null,null,null,null,null,null,null,null,null,null,null,null,null,null,null,null,null,null,null,"Geburtsdatum",null,null,null,null,null,null,null,null,null,null,null,null,{"$f":"IF(TRIM(PaymAppl_CoupleNameA)=\"\",\"???\",TRIM(PaymAppl_CoupleNameA))","v":"???"}]
[]
[null,"Titel, Name, Vorname",null,null,null,null,null,null,null,null,null,null,null,null,null,null,null,null,null,null,null,null,null,null,null,null,"Geburtsdatum",null,null,null,null,null,null,null,null,null,null,null,null,{"$f":"IF(TRIM(PaymAppl_CoupleNameB)=\"\",\"???\",TRIM(PaymAppl_CoupleNameB))","v":"???"}]
[]
["  "]
[null,"Name/Unternehmen",null,null,null,null,null,null,null,null,null,null,null,null,null,null,null,null,null,null,null,null,null,null,null,null,null,null,null,null,null,null,null,null,null,null,null,null,null,{"$f":"TRIM(PaymAppl_LegalEntityName)","v":""}]
[]
[null,"Gesellschaftsform",null,null,null,null,null,null,null,null,null,null,null,null,null,null,null,null,null,null,null,null,null,null,null,null,"ZVR/FB-Nr./GKZ"]
[]
[]
[null,"Name",null,null,null,null,null,null,null,null,null,null,null,null,null,null,null,null,null,null,null,null,null,null,null,null,null,null,null,null,null,null,null,null,null,null,null,null,null,{"$f":"TRIM(PaymAppl_PersonGroupName)","v":""}]
[]
[null,"Gesellschaftsform"]
[]
["Vertretungsbefugte/r",null,null,null,null,null,null,null,null,null,null,null,null,null,null,null,null,null,null,null,null,null,null,null,null,null,"Geburtsdatum"]
[]
["Vertretungsbefugte/r",null,null,null,null,null,null,null,null,null,null,null,null,null,null,null,null,null,null,null,null,null,null,null,null,null,"Geburtsdatum"]
[]
["Zustelladresse: Straße, Hausnr."]
[]
["Zustelladresse: PLZ, Ort"]
[]
["Betriebsadresse: Straße, Hausnr."]
[]
["Betriebsadresse: PLZ, Ort"]
[]
["Mobil-,Telefonnr./Email-/Internetadresse"]
[]
["Bankverbindung"]
[]
["IBAN",null,null,null,null,null,null,null,null,null,null,null,null,null,null,null,null,null,null,null,null,null,null,null,null,null,"BIC"]
[]
["ACHTUNG:\n",null,null,null,null,"Alle Zahlungen werden auf die letzte von Ihnen bekanntgegebene Bankverbindung überwiesen.\nIhr Auszahlungskonto können Sie jederzeit im eAMA unter KUNDENDATEN einsehen und ändern."]
[]
["Förderungswerber/in",null,null,null,null,null,null,{"$f":"IF(AN31=1,AN32,IF(AN31=2,AN35 & \"/\" & AN37,IF(AN31=3,AN40,IF(AN31=4,AN45,\"???\"))))","v":""},null,null,null,null,null,null,null,null,null,null,null,null,null,null,"Betriebs-/Klientennummer",null,null,null,null,null,null,null,null,{"$f":"IF(ISBLANK(M29),\"\",M29)","v":""}]
[]
["Zahlungsantrag (Seite 2)"]
[]
["eingereichte Kosten"]
[]
[null,null,"Belegbetrag brutto",null,null,null,null,null,null,null,null,"Belegbetrag netto",null,null,null,null,null,null,null,null,"eingereichte Kosten",null,null,null,null,null,null,null,null,"Einnahmen"]
[]
[null,null,{"$f":"Übersicht!D54","v":0},null,null,null,null,null,"€",null,null,{"$f":"IF(PaymAppl_TaxDeduct= \"Nein\", \"---\", Übersicht!E54)","v":0},null,null,null,null,null,"€",null,null,{"$f":"Übersicht!F54","v":0},null,null,null,null,null,"€",null,null,{"$f":"Übersicht!L54","v":0},null,null,null,null,null,"€"]
[]
["genehmigter Zeitraum für die Kostenanerkennung",null,null,null,null,null,null,null,null,null,null,null,null,null,null,null,null,null,null,null,null,null,"von",null,null,null,null,null,null,null,"bis"]
[]
["Allgemeine Beilagen",null,null,null,null,null,null,null,null,null,null,null,null,null,null,null,null,null,null,null,null,null,null,null,null,null,"liegt \nbei",null,null,"wird \nnachgereicht",null,null,null,null,"nicht \nerforderlich"]
[]
["Abrechnungsbelege (Rechnungen, Honorarnoten, Jahreslohnkonten etc.)"]
[]
["Belegaufstellung - Investitionen und Sachaufwand"]
[]
["Belegaufstellung - unbare Eigenleistungen (=unbare Sachleistungen) "]
[]
["Belegaufstellung Personalkosten"]
[]
["Zeitaufzeichnungen, Tätigkeitsbeschreibungen"]
[]
["Zahlungsnachweis/e"]
[]
["Nachweis über die Einhaltung der Publizitätskriterien"]
[]
["Sonstige Beilage(n):"]
[]
["Vorhabensspezifische Beilagen, die spätestens mit der Endabrechnung vorgelegt werden  müssen: ",null,null,null,null,null,null,null,null,null,null,null,null,null,null,null,null,null,null,null,null,null,null,null,null,null,"liegt \nbei",null,null,"wird \nnachgereicht",null,null,null,null,"nicht \nerforderlich"]
[]
["Benutzungsbewilligung"]
[]
["Endbericht"]
[]
["Versichungsnachweis bei Investitionen in unbewegl. Investitionsgegenstände"]
[]
["Evaluierungsdatenblatt"]
[]
["Sonstige Beilage(n):"]
[]
["Angaben zu anderen Förderungen/Zuschüssen",null,null,null,null,null,null,null,null,null,null,null,null,null,null,null,null,null,null,null,null,null,null,null,null,null,null,null,"Keine weitere/n Förderung/en \nbzw. Zuschüsse"]
[]
["Im Rahmen d. Projektes wurde bei folgenden anderen Förderstellen um eine Förderung bzw. einen Zuschuss angesucht:"]
["Geben Sie hier die entsprechende Stelle sowie die/den beantragte(n)/genehmigten(n)/erhaltene(n) Förderung/Zuschuss an!"]
[null,null,null,null,null,null,null,null,null,null,null,null,null,null,null,null,null,null,null,null,null,null,null,null,null,null,"Förderung/Zuschuss im Ausmaß von "]
[]
[]
["Bund:",null,null,null,null,null,null,null,null,null,null,null,null,null,null,null,null,null,null,null,null,null,null,null,null,null,null,null,null,null,null,null,null,null,null,null,"€"]
[]
["Land:",null,null,null,null,null,null,null,null,null,null,null,null,null,null,null,null,null,null,null,null,null,null,null,null,null,null,null,null,null,null,null,null,null,null,null,"€"]
[]
["Gemeinde/n:",null,null,null,null,null,null,null,null,null,null,null,null,null,null,null,null,null,null,null,null,null,null,null,null,null,null,null,null,null,null,null,null,null,null,null,"€"]
[]
["Mit meiner Unterschrift bestätige ich, "]
[null,"-) dass ich alle Angaben im Zahlungsantrag und sämtlichen Beilagen mit bestem Wissen gemacht habe,"]
[null,"-) Abrechnungsbelege nicht in unzulässiger Weise zur Abrechnung einer bei einer anderen Abwicklungsstelle\n    beantragten Förderung eingebracht habe oder einreichen werde (unzulässige Mehrfachförderung)"]
[null,"-) die Beantragung einer mit der LE-Projektförderung kumulierbaren Förderung bei einer anderen Förderungs-\n    abwicklungsstelle der Bewilligenden Stelle gemeldet habe oder melden werde,"]
[null,"-) allen Verpflichtungen gegenüber der Bewilligenden Stelle (z.B. Meldeverpflichtung) nachgekommen bin,\n"]
[null,"-) dass alle Personen, deren Daten im Rahmen dieses Zahlungsantrages offengelegt wurden, von mir darüber\n    informiert wurden, dass eine Verarbeitung ihrer Daten durch die Zahlstelle und Bewilligende Stelle für Zwecke"]
[null,"    der Abwicklung und Kontrolle der Förderung erfolgt."]
["und ersuche um Auszahlung des entsprechenden Förderungsbetrages."]
[]
[]
["Ort, Datum",null,null,null,null,null,null,null,"Name in Blockbuchstaben",null,null,null,null,null,null,null,null,null,null,null,null,null,null,null,"Unterschrift bzw. firmenmäßige Zeichnung"]
[null,null,null,null,null,null,null,null,null,null,null,null,null,null,null,null,null,null,null,null,null,null,null,null,null,null,null,null,null,null,null,null,null,null,null,null,null,null,"RL/AMA v469.25 / Jan. 2022"]
[]
[]
[]
["Liste verfügbarer Vorhabensarten (für Pop-Up-Menu)"]
["Bitte auswählen"]
["M 1 A) - Wissenstransfer und Informationsmaßnahmen in der Land- und Forstwirtschaft - Landwirtschaft"]
["M 1 B) - Wissenstransfer und Informationsmaßnahmen in der Land- und Forstwirtschaft - Forstwirtschaft"]
[" - "]
["2.1.1. A) - Inanspruchnahme von Beratungsleistungen - Landwirtschaft"]
["2.1.1. B) - Inanspruchnahme von Beratungsleistungen - Forstwirtschaft"]
["2.1.1. C) - Inanspruchnahme von Beratungsleistungen - KMU"]
["2.3.1. - Ausbildung von BeraterInnen"]
[" - "]
["3.2.1. - Informations- und Absatzförderungsmaßnahmen"]
[" - "]
["4.1.1. - Investitionen in die landwirtschaftliche Erzeugung"]
["4.2.1. A) - Verarbeitung, Vermarktung und Entwicklung landwirtschaftlicher Erzeugnisse (Bewilligung AWS)"]
["4.2.1. B) - Verarbeitung, Vermarktung und Entwicklung landwirtschaftlicher Erzeugnisse (Bewilligung Bundesländer)"]
["4.3.1. - Investitionen in überbetriebliche Bewässerungsinfrastruktur"]
["4.3.2. - Investitionen in die Infrastruktur für die Entwicklung, Modernisierung und Anpassung der Forstwirtschaft"]
["4.4.1. - Nichtproduktive Investitionen – Ökologische Verbesserung von Gewässern in landwirtschaftlich geprägten Regionen"]
["4.4.2. - Nichtproduktive Investitionen – Investitionen zur Stabilisierung von Rutschungen"]
["4.4.3. - Nichtproduktive Investitionen – Ökologische Agrarinfrastruktur zur Flurentwicklung"]
[" - "]
["6.1.1. - Existenzgründungsbeihilfen für JunglandwirtInnen"]
["6.4.1. - Diversifizierung hin zu nichtlandwirtschaftlichen Tätigkeiten"]
["6.4.2. - Diversifizierung lw. und fw. Betriebe durch Energie aus nachwachsenden Rohstoffen sowie Energiedienstleistungen"]
["6.4.3. - Photovoltaik in der Landwirtschaft"]
["6.4.4. - Gründung von innovativen Kleinunternehmen im ländlichen Raum"]
["6.4.5. - Förderung von Nahversorgungsbetrieben einschließlich gewerblicher Beherbergungs- und Gastronomiebetriebe"]
[" - "]
["7.1.1. A) - Pläne und Entwicklungskonzepte zur Erhaltung des natürlichen Erbes - Naturschutz - Bund"]
["7.1.1. A) - Pläne und Entwicklungskonzepte zur Erhaltung des natürlichen Erbes - Naturschutz - Länder"]
["7.1.1. B) - Pläne und Entwicklungskonzepte zur Erhaltung des natürlichen Erbes - Nationalparks"]
["7.1.2. - Pläne und Entwicklungskonzepte zur Dorferneuerung"]
["7.1.3. - Lokale Agenda 21 - Bund"]
["7.1.3. - Lokale Agenda 21 - Länder"]
["7.2.1. - Ländliche Verkehrsinfrastruktur"]
["7.2.2. - Investitionen in erneuerbare Energien"]
["7.2.3. - Umsetzung von Klima- und Energieprojekten auf lokaler Ebene"]
["7.3.1. - Breitbandinfrastruktur in ländlichen Gebieten"]
["7.4.1. A) - Soziale Angelegenheiten - BMASK"]
["7.4.1. B) - Soziale Angelegenheiten - BMG"]
["7.4.2. - Klimafreundliche Mobilitätslösungen (klimaaktiv mobil)"]
["7.5.1. A) - Investitionen in kleine touristische Infrastruktur - BMLRT"]
["7.5.1. B) - Investitionen in kleine touristische Infrastruktur - Forst"]
["7.5.1. C) - Investitionen in kleine touristische Infrastruktur - Länder"]
["7.6.1. A) - Studien und Investitionen zur Erhaltung, Wiederherstellung und Verbesserung des natürlichen Erbes - Naturschutz - Bund "]
["7.6.1. A) - Studien und Investitionen zur Erhaltung, Wiederherstellung und Verbesserung des natürlichen Erbes - Naturschutz - Länder"]
["7.6.1. B) - Studien und Investitionen zur Erhaltung, Wiederherstellung und Verbesserung des natürlichen Erbes - Nationalparks"]
["7.6.1. C) - Studien und Investitionen zur Erhaltung, Wiederherstellung und Verbesserung des natürlichen Erbes - Forst - Bund"]
["7.6.1. C) - Studien und Investitionen zur Erhaltung, Wiederherstellung und Verbesserung des natürlichen Erbes - Forst - Länder"]
["7.6.2. - Umsetzung von Plänen zur Dorferneuerung und Gemeindeentwicklung"]
["7.6.3. - Erhaltung und Entwicklung der Kulturlandschaft"]
["7.6.4. - Überbetriebliche Maßnahmen für die Bereiche Wald und Schutz vor Naturgefahren"]
["7.6.5. - Stärkung der Potenziale des alpinen ländlichen Raums"]
[" - "]
["8.1.1. - Aufforstung und Anlage von Wäldern"]
["8.4.1. - Vorbeugung von Schäden und Wiederherstellung von Wäldern nach Naturkatastrophen und Katastrophenereignissen - Forstschutz"]
["8.5.1. - Investitionen zur Stärkung von Resistenz und ökologischem Wert des Waldes - Öffentlicher Wert & Schutz vor Naturgefahren"]
["8.5.2. - Investitionen zur Stärkung von Resistenz und ökologischem Wert des Waldes - Genetische Ressourcen"]
["8.5.3. - Investitionen zur Stärkung des ökologischen Werts der Waldökosysteme - Wald-Ökologie-Programm "]
["8.6.1. - Investitionen in Forsttechniken, Verarbeitung, Mobilisierung und Vermarktung forstwirtschaftlicher Erzeugnisse"]
["8.6.2. - Erstellung von waldbezogenen Plänen auf betrieblicher Ebene"]
[" - "]
["15.1.1. - Erhaltung von ökologisch wertvollen/seltenen Waldflächen /-gesellschaften"]
["15.2.1. - Erhaltung und Verbesserung der genetischen Ressourcen des Waldes"]
[" - "]
["16.01.1. - Unterstützung beim Aufbau & Betrieb operationeller Gruppen der EIP für lw. Produktivität & Nachhaltigkeit"]
["16.02.1. - Unterstützung bei der Entwicklung neuer Erzeugnisse, Verfahren & Technologien der Land-, Ernährungs- & Forstwirtschaft"]
["16.02.2. A) - Unterstützung bei der Entwicklung von innovativen Pilotprojekten im Tourismus - BMLRT"]
["16.02.2. B) - Unterstützung bei der Entwicklung von innovativen Pilotprojekten im Tourismus - Länder"]
["16.03.1. A) - Zusammenarbeit von kleinen WirtschaftsteilnehmerInnen - Arbeitsabläufe, Ressourcennutzung und Tourismusdienstleistungen "]
["16.03.1. A) - Zusammenarbeit von kleinen WirtschaftsteilnehmerInnen - Arbeitsabläufe, Ressourcennutzung und Tourismusdienstleistungen - BMLRT"]
["16.03.1. B) - Zusammenarbeit von kleinen WirtschaftsteilnehmerInnen - Arbeitsabläufe, Ressourcennutzung und Tourismusdienstleistungen - BMLRT"]
["16.03.1. C) - Zusammenarbeit von kleinen WirtschaftsteilnehmerInnen - Arbeitsabläufe, Ressourcennutzung und Tourismusdienstleistungen - Länder"]
["16.03.2. - Zusammenarbeit von Kleinstunternehmen im ländlichen Raum"]
["16.04.1. - Schaffung und Entwicklung von kurzen Versorgungsketten und lokalen Märkten sowie unterstützende Absatzförderung "]
["16.05.1. - Stärkung der horizontalen und vertikalen Zusammenarbeit zwischen AkteurInnen im forst- und wasserwirtschaftlichen Sektor"]
["16.05.2. A) - Stärkung der Zusammenarbeit von AkteurInnen und Strukturen zur Erhaltung des natürlichen Erbes & des Umweltschutzes - Naturschutz"]
["16.05.2. A) - Stärkung der Zusammenarbeit von AkteurInnen und Strukturen zur Erhaltung des natürlichen Erbes & des Umweltschutzes - Naturschutz - Länder"]
["16.05.2. B) - Stärkung der Zusammenarbeit von AkteurInnen und Strukturen zur Erhaltung des natürlichen Erbes & des Umweltschutzes - Umweltschutz"]
["16.05.2. C) - Stärkung der Zusammenarbeit von AkteurInnen und Strukturen zur Erhaltung des natürlichen Erbes & des Umweltschutzes - Nationalparks"]
["16.08.1. - Waldbezogene Pläne auf überbetrieblicher Ebene"]
["16.09.1. - Förderung horizontaler & vertikaler Zusammenarbeit lw. & fw. AkteurInnen zur Schaffung & Entwicklung v. Sozialleistungen - BMLRT"]
["16.10.1. - Einrichtung und Betrieb von Clustern - BMLRT"]
["16.10.2. - Einrichtung und Betrieb von Netzwerken - BMLRT"]
["16.10.3. - Zusammenarbeit: Erzeugergemeinschaften /-organisationen, Genossenschaften und Branchenverbände - BMLRT"]
[" - "]
["19.1.1. - Erstellung der lokalen Entwicklungsstrategie - Länder"]
["19.1.1. - Erstellung der lokalen Entwicklungsstrategie"]
["19.2.1. - Umsetzung der lokalen Entwicklungsstrategie - Länder"]
["19.2.1. - Umsetzung der lokalen Entwicklungsstrategie"]
["19.3.1. - Umsetzung von nationalen oder transnationalen Kooperationsprojekten - Länder"]
["19.3.1. - Umsetzung von nationalen oder transnationalen Kooperationsprojekten"]
["19.4.1. - Laufende Kosten des LAG-Managements und Sensibilisierung - Länder"]
["19.4.1. - Laufende Kosten des LAG-Managements und Sensibilisierung"]
[" - "]
["20.1. - Technische Hilfe (außer Netzwerk)"]
["20.2. - Technische Hilfe - Netzwerk"]

{"sheet":"TABLE Fördergeber","index":2,"n_rows":87,"n_cols":2,"rows_kept":87,"cut":false,"hidden":true,"merged":[]}
["Vorhabensart (alphabet. Sortiert)","Fördergeber"]
[" - "," - "]
["15.1.1. - Erhaltung von ökologisch wertvollen/seltenen Waldflächen /-gesellschaften","BMLRT/LE1420/LD/EU"]
["15.2.1. - Erhaltung und Verbesserung der genetischen Ressourcen des Waldes","BMLRT/LE1420/LD/EU"]
["16.01.1. - Unterstützung beim Aufbau & Betrieb operationeller Gruppen der EIP für lw. Produktivität & Nachhaltigkeit","BMLRT/LE1420/LD/EU"]
["16.02.1. - Unterstützung bei der Entwicklung neuer Erzeugnisse, Verfahren & Technologien der Land-, Ernährungs- & Forstwirtschaft","BMLRT/LE1420/LD/EU"]
["16.02.2. A) - Unterstützung bei der Entwicklung von innovativen Pilotprojekten im Tourismus - BMLRT","BMLRT/LE1420/EU"]
["16.02.2. B) - Unterstützung bei der Entwicklung von innovativen Pilotprojekten im Tourismus - Länder","LD/LE1420/EU"]
["16.03.1. A) - Zusammenarbeit von kleinen WirtschaftsteilnehmerInnen - Arbeitsabläufe, Ressourcennutzung und Tourismusdienstleistungen ","BMLRT/LE1420/LD/EU"]
["16.03.1. A) - Zusammenarbeit von kleinen WirtschaftsteilnehmerInnen - Arbeitsabläufe, Ressourcennutzung und Tourismusdienstleistungen - BMLRT","BMLRT/LE1420/EU"]
["16.03.1. B) - Zusammenarbeit von kleinen WirtschaftsteilnehmerInnen - Arbeitsabläufe, Ressourcennutzung und Tourismusdienstleistungen - BMLRT","BMLRT/LE1420/EU"]
["16.03.1. C) - Zusammenarbeit von kleinen WirtschaftsteilnehmerInnen - Arbeitsabläufe, Ressourcennutzung und Tourismusdienstleistungen - Länder","LD/LE1420/EU"]
["16.03.2. - Zusammenarbeit von Kleinstunternehmen im ländlichen Raum","BMDW/LE1420/EU"]
["16.04.1. - Schaffung und Entwicklung von kurzen Versorgungsketten und lokalen Märkten sowie unterstützende Absatzförderung ","BMLRT/LE1420/LD/EU"]
["16.05.1. - Stärkung der horizontalen und vertikalen Zusammenarbeit zwischen AkteurInnen im forst- und wasserwirtschaftlichen Sektor","BMLRT/LE1420/LD/EU"]
["16.05.2. A) - Stärkung der Zusammenarbeit von AkteurInnen und Strukturen zur Erhaltung des natürlichen Erbes & des Umweltschutzes - Naturschutz","BMLRT/LE1420/EU"]
["16.05.2. A) - Stärkung der Zusammenarbeit von AkteurInnen und Strukturen zur Erhaltung des natürlichen Erbes & des Umweltschutzes - Naturschutz - Länder","LD/LE1420/EU"]
["16.05.2. B) - Stärkung der Zusammenarbeit von AkteurInnen und Strukturen zur Erhaltung des natürlichen Erbes & des Umweltschutzes - Umweltschutz","BMLRT/LE1420/EU"]
["16.05.2. C) - Stärkung der Zusammenarbeit von AkteurInnen und Strukturen zur Erhaltung des natürlichen Erbes & des Umweltschutzes - Nationalparks","BMK/LE1420/EU"]
["16.08.1. - Waldbezogene Pläne auf überbetrieblicher Ebene","BMLRT/LE1420/LD/EU"]
["16.09.1. - Förderung horizontaler & vertikaler Zusammenarbeit lw. & fw. AkteurInnen zur Schaffung & Entwicklung v. Sozialleistungen - BMLRT","BMLRT/LE1420/LD/EU"]
["16.10.1. - Einrichtung und Betrieb von Clustern - BMLRT","BMLRT/LE1420/LD/EU"]
["16.10.2. - Einrichtung und Betrieb von Netzwerken - BMLRT","BMLRT/LE1420/LD/EU"]
["16.10.3. - Zusammenarbeit: Erzeugergemeinschaften /-organisationen, Genossenschaften und Branchenverbände - BMLRT","BMLRT/LE1420/LD/EU"]
["19.1.1. - Erstellung der lokalen Entwicklungsstrategie","BMLRT/LE1420/LD/LEADER/EU"]
["19.1.1. - Erstellung der lokalen Entwicklungsstrategie - Länder","LD/LE1420/LEADER/EU"]
["19.2.1. - Umsetzung der lokalen Entwicklungsstrategie","BMLRT/LE1420/LD/LEADER/EU"]
["19.2.1. - Umsetzung der lokalen Entwicklungsstrategie - Länder","LD/LE1420/LEADER/EU"]
["19.3.1. - Umsetzung von nationalen oder transnationalen Kooperationsprojekten","BMLRT/LE1420/LD/LEADER/EU"]
["19.3.1. - Umsetzung von nationalen oder transnationalen Kooperationsprojekten - Länder","LD/LE1420/LEADER/EU"]
["19.4.1. - Laufende Kosten des LAG-Managements und Sensibilisierung","BMLRT/LE1420/LD/LEADER/EU"]
["19.4.1. - Laufende Kosten des LAG-Managements und Sensibilisierung - Länder","LD/LE1420/LEADER/EU"]
["2.1.1. A) - Inanspruchnahme von Beratungsleistungen - Landwirtschaft","BMLRT/LE1420/LD/EU"]
["2.1.1. B) - Inanspruchnahme von Beratungsleistungen - Forstwirtschaft","BMLRT/LE1420/LD/EU"]
["2.1.1. C) - Inanspruchnahme von Beratungsleistungen - KMU","LD/LE1420/EU"]
["2.3.1. - Ausbildung von BeraterInnen","BMLRT/LE1420/LD/EU"]
["20.1. - Technische Hilfe (außer Netzwerk)","BMLRT/LE1420/LD/EU"]
["20.2. - Technische Hilfe - Netzwerk","BMLRT/LE1420/LD/EU"]
["3.2.1. - Informations- und Absatzförderungsmaßnahmen","BMLRT/LE1420/LD/EU"]
["4.1.1. - Investitionen in die landwirtschaftliche Erzeugung","BMLRT/LE1420/LD/EU"]
["4.2.1. A) - Verarbeitung, Vermarktung und Entwicklung landwirtschaftlicher Erzeugnisse (Bewilligung AWS)","BMLRT/LE1420/LD/EU"]
["4.2.1. B) - Verarbeitung, Vermarktung und Entwicklung landwirtschaftlicher Erzeugnisse (Bewilligung Bundesländer)","BMLRT/LE1420/LD/EU"]
["4.3.1. - Investitionen in überbetriebliche Bewässerungsinfrastruktur","BMLRT/LE1420/LD/EU"]
["4.3.2. - Investitionen in die Infrastruktur für die Entwicklung, Modernisierung und Anpassung der Forstwirtschaft","BMLRT/LE1420/LD/EU"]
["4.4.1. - Nichtproduktive Investitionen – Ökologische Verbesserung von Gewässern in landwirtschaftlich geprägten Regionen","BMLRT/LE1420/LD/EU"]
["4.4.2. - Nichtproduktive Investitionen – Investitionen zur Stabilisierung von Rutschungen","BMLRT/LE1420/LD/EU"]
["4.4.3. - Nichtproduktive Investitionen – Ökologische Agrarinfrastruktur zur Flurentwicklung","BMLRT/LE1420/LD/EU"]
["6.1.1. - Existenzgründungsbeihilfen für JunglandwirtInnen","BMLRT/LE1420/LD/EU"]
["6.4.1. - Diversifizierung hin zu nichtlandwirtschaftlichen Tätigkeiten","BMLRT/LE1420/LD/EU"]
["6.4.2. - Diversifizierung lw. und fw. Betriebe durch Energie aus nachwachsenden Rohstoffen sowie Energiedienstleistungen","BMLRT/LE1420/LD/EU"]
["6.4.3. - Photovoltaik in der Landwirtschaft","BMK/LE1420/EU"]
["6.4.4. - Gründung von innovativen Kleinunternehmen im ländlichen Raum","BMDW/LE1420/EU"]
["6.4.5. - Förderung von Nahversorgungsbetrieben einschließlich gewerblicher Beherbergungs- und Gastronomiebetriebe","LD/LE1420/EU"]
["7.1.1. A) - Pläne und Entwicklungskonzepte zur Erhaltung des natürlichen Erbes - Naturschutz - Bund","BMLRT/LE1420/EU"]
["7.1.1. A) - Pläne und Entwicklungskonzepte zur Erhaltung des natürlichen Erbes - Naturschutz - Länder","LD/LE1420/EU"]
["7.1.1. B) - Pläne und Entwicklungskonzepte zur Erhaltung des natürlichen Erbes - Nationalparks","BMK/LE1420/EU"]
["7.1.2. - Pläne und Entwicklungskonzepte zur Dorferneuerung","LD/LE1420/EU"]
["7.1.3. - Lokale Agenda 21 - Bund","BMK/LE1420/EU"]
["7.1.3. - Lokale Agenda 21 - Länder","LD/LE1420/EU"]
["7.2.1. - Ländliche Verkehrsinfrastruktur","BMLRT/LE1420/LD/EU"]
["7.2.2. - Investitionen in erneuerbare Energien","BMK/LE1420/EU"]
["7.2.3. - Umsetzung von Klima- und Energieprojekten auf lokaler Ebene","BMK/LE1420/EU"]
["7.3.1. - Breitbandinfrastruktur in ländlichen Gebieten","BMLRT/LE1420/EU"]
["7.4.1. A) - Soziale Angelegenheiten - BMASK","LD/LE1420/EU"]
["7.4.1. B) - Soziale Angelegenheiten - BMG","LD/LE1420/EU"]
["7.4.2. - Klimafreundliche Mobilitätslösungen (klimaaktiv mobil)","BMK/LE1420/EU"]
["7.5.1. A) - Investitionen in kleine touristische Infrastruktur - BMLRT","BMLRT/LE1420/EU"]
["7.5.1. B) - Investitionen in kleine touristische Infrastruktur - Forst","LD/LE1420/EU"]
["7.5.1. C) - Investitionen in kleine touristische Infrastruktur - Länder","LD/LE1420/EU"]
["7.6.1. A) - Studien und Investitionen zur Erhaltung, Wiederherstellung und Verbesserung des natürlichen Erbes - Naturschutz - Bund ","BMLRT/LE1420/EU"]
["7.6.1. A) - Studien und Investitionen zur Erhaltung, Wiederherstellung und Verbesserung des natürlichen Erbes - Naturschutz - Länder","LD/LE1420/EU"]
["7.6.1. B) - Studien und Investitionen zur Erhaltung, Wiederherstellung und Verbesserung des natürlichen Erbes - Nationalparks","BMK/LE1420/EU"]
["7.6.1. C) - Studien und Investitionen zur Erhaltung, Wiederherstellung und Verbesserung des natürlichen Erbes - Forst - Bund","BMLRT/LE1420/EU"]
["7.6.1. C) - Studien und Investitionen zur Erhaltung, Wiederherstellung und Verbesserung des natürlichen Erbes - Forst - Länder","LD/LE1420/EU"]
["7.6.2. - Umsetzung von Plänen zur Dorferneuerung und Gemeindeentwicklung","LD/LE1420/EU"]
["7.6.3. - Erhaltung und Entwicklung der Kulturlandschaft","BMLRT/LE1420/LD/EU"]
["7.6.4. - Überbetriebliche Maßnahmen für die Bereiche Wald und Schutz vor Naturgefahren","BMLRT/LE1420/LD/EU"]
["7.6.5. - Stärkung der Potenziale des alpinen ländlichen Raums","BMLRT/LE1420/EU"]
["8.1.1. - Aufforstung und Anlage von Wäldern","BMLRT/LE1420/LD/EU"]
["8.4.1. - Vorbeugung von Schäden und Wiederherstellung von Wäldern nach Naturkatastrophen und Katastrophenereignissen - Forstschutz","BMLRT/LE1420/LD/EU"]
["8.5.1. - Investitionen zur Stärkung von Resistenz und ökologischem Wert des Waldes - Öffentlicher Wert & Schutz vor Naturgefahren","BMLRT/LE1420/LD/EU"]
["8.5.2. - Investitionen zur Stärkung von Resistenz und ökologischem Wert des Waldes - Genetische Ressourcen","BMLRT/LE1420/LD/EU"]
["8.5.3. - Investitionen zur Stärkung des ökologischen Werts der Waldökosysteme - Wald-Ökologie-Programm ","BMLRT/LE1420/LD/EU"]
["8.6.1. - Investitionen in Forsttechniken, Verarbeitung, Mobilisierung und Vermarktung forstwirtschaftlicher Erzeugnisse","BMLRT/LE1420/LD/EU"]
["8.6.2. - Erstellung von waldbezogenen Plänen auf betrieblicher Ebene","BMLRT/LE1420/LD/EU"]
["M 1 A) - Wissenstransfer und Informationsmaßnahmen in der Land- und Forstwirtschaft - Landwirtschaft","BMLRT/LE1420/LD/EU"]
["M 1 B) - Wissenstransfer und Informationsmaßnahmen in der Land- und Forstwirtschaft - Forstwirtschaft","BMLRT/LE1420/LD/EU"]

{"sheet":"TEMPLATE Auswahl Belegaufst.","index":3,"n_rows":37,"n_cols":5,"rows_kept":37,"cut":false,"hidden":true,"merged":[[0,0,0,4],[8,2,8,3],[30,1,30,3],[2,2,2,3],[4,2,4,3],[6,2,6,3]]}
["Zahlungsantrag - Stammdaten/Übersicht"]
[null,null,null,null,"RL/AMA v469.25 / Jan. 2022"]
[null,"Betriebs-/Klientennummer: "]
[]
[null,"Förderungswerber: "]
[]
[null,"Antragsnummer: "]
[]
[null,"Vorsteuerabzugsberechtigung: ",{"$f":"C10","v":"Nein"}]
[null,null,{"$f":"IF(D10=1,\"Ja\",\"Nein\")","v":"Nein"},2]
[]
[null,"Genehmigter Zeitraum für  ","Beginn","Ende"]
[null,"Kostenanerkennung: "]
[]
[]
[]
[]
[]
[]
[]
[]
[]
[]
[]
[]
[]
[]
[]
[]
[]
[null,"Buttons nur zur internen Verwendung der Bewilligenden Stelle"]
[]
[]
[]
[]
[]
[null,null,null,"U"]

{"sheet":"Auswahl Belegaufstellungen","index":4,"n_rows":37,"n_cols":5,"rows_kept":37,"cut":false,"hidden":true,"merged":[[0,0,0,4],[2,2,2,3],[4,2,4,3],[6,2,6,3],[8,2,8,3],[30,1,30,3]]}
["Zahlungsantrag - Stammdaten/Übersicht"]
[null,null,null,null,"RL/AMA v469.25 / Jan. 2022"]
[null,"Betriebs-/Klientennummer: ",{"$f":"TRIM('Zahlungsantrag LEW14-20'!PaymAppl_ApplicantID)","v":""}]
[]
[null,"Förderungswerber: ",{"$f":"TRIM('Zahlungsantrag LEW14-20'!PaymAppl_ApplicantName)","v":""}]
[]
[null,"Antragsnummer: ",{"$f":"TRIM('Zahlungsantrag LEW14-20'!PaymAppl_ApplicationID) & 'Zahlungsantrag LEW14-20'!PaymAppl_PartialPaymTitle","v":""}]
[]
[null,"Vorsteuerabzugsberechtigung: ",{"$f":"TRIM('Zahlungsantrag LEW14-20'!PaymAppl_TaxDeduct)","v":"Ja"}]
[null,null,{"$f":"IF(D10=1,\"Ja\",\"Nein\")","v":"Nein"},2]
[]
[null,"Genehmigter Zeitraum für  ","Beginn","Ende"]
[null,"Kostenanerkennung: ",{"$f":"IF(TRIM('Zahlungsantrag LEW14-20'!PaymAppl_SupportPeriodStart)=\"\",\"\",'Zahlungsantrag LEW14-20'!PaymAppl_SupportPeriodStart)","v":""},{"$f":"IF(TRIM('Zahlungsantrag LEW14-20'!PaymAppl_SupportPeriodEnd)=\"\",\"\",'Zahlungsantrag LEW14-20'!PaymAppl_SupportPeriodEnd)","v":""}]
[]
[]
[]
[]
[]
[]
[]
[]
[]
[]
[]
[]
[]
[]
[]
[]
[]
[null,"Buttons nur zur internen Verwendung der Bewilligenden Stelle"]
[]
[]
[]
[]
[]
[null,null,null,"U"]

{"sheet":"Übersicht","index":5,"n_rows":54,"n_cols":12,"rows_kept":54,"cut":false,"hidden":false,"merged":[[16,0,16,11],[41,0,41,11],[47,0,47,11],[51,0,51,11],[8,0,8,1],[8,2,8,5],[10,0,10,1],[11,0,11,1],[13,2,13,5],[15,0,15,11],[0,0,0,11],[2,0,2,1],[2,2,2,5],[4,0,4,1],[4,2,4,5],[6,0,6,1],[6,2,6,5]]}
["Übersicht"]
[null,null,null,null,null,null,null,null,null,null,null,"RL/AMA v469.25 / Jan. 2022"]
["Betriebs-/Klientennummer: ",null,{"$f":"TRIM('Auswahl Belegaufstellungen'!Stm_ApplicantID)","v":""}]
[]
["Förderungswerber: ",null,{"$f":"TRIM('Auswahl Belegaufstellungen'!Stm_ApplicantName)","v":""}]
[]
["Antragsnummer: ",null,{"$f":"TRIM('Auswahl Belegaufstellungen'!Stm_ApplicationID)","v":""}]
[]
["Vorsteuerabzugsberechtigung: ",null,{"$f":"'Auswahl Belegaufstellungen'!Stm_TaxDeduct","v":"Ja"}]
[]
["Genehmigter Zeitraum für  ",null,null,"Beginn","---","Ende"]
["Kostenanerkennung: ",null,null,{"$f":"IF(TRIM('Auswahl Belegaufstellungen'!Stm_SupportPeriodStart)=\"\",\"\",'Auswahl Belegaufstellungen'!Stm_SupportPeriodStart)","v":""},"---",{"$f":"IF(TRIM('Auswahl Belegaufstellungen'!Stm_SupportPeriodEnd)=\"\",\"\",'Auswahl Belegaufstellungen'!Stm_SupportPeriodEnd)","v":""}]
[]
[null,"Gruppierung nach:  ","Teilprojekt"]
[]
["Buttons zur internen Verwendung der Bewilligenden Stelle"]
[]
[]
[]
[]
[]
[]
[]
[]
[]
[]
[]
[]
[]
[]
[]
[]
[]
[]
[]
[]
[]
[]
[]
[]
[255,1023,1,1,"Teilprojekt","Fördergegenstand","Teilprojekt","Codierung / Fördergegenstand"]
["Gesamtsumme"]
["Tabellenblatt","Kostenart","Fördergegenstand","Gesamtkosten\nbrutto","Gesamtkosten\nnetto","eingereichte\nKosten","verminderte Kosten\nnach VWK","anrechenbare Kosten\nnach VWK","verminderte Kosten nach VOK","anrechenbare Kosten nach VOK","Sanktions-\nrelevante Kosten\ngemäß Art. 35","Einnahmen "]
[]
[null,"Summe: "]
[]
[null,"Gesamtsumme: "]
["Keine Belegaufstellungen verfügbar"]
["Tabellenblatt","Kostenart","Fördergegenstand","Gesamtkosten\nbrutto","Gesamtkosten\nnetto","eingereichte\nKosten","verminderte Kosten\nnach VWK","anrechenbare Kosten\nnach VWK","verminderte Kosten nach VOK","anrechenbare Kosten nach VOK","Sanktions-\nrelevante Kosten\ngemäß Art. 35","Einnahmen "]
[null,"Summe: "]
[]
["Gesamtsumme"]
["Tabellenblatt","Kostenart","Fördergegenstand","Gesamtkosten\nbrutto","Gesamtkosten\nnetto","eingereichte\nKosten","verminderte Kosten\nnach VWK","anrechenbare Kosten\nnach VWK","verminderte Kosten nach VOK","anrechenbare Kosten nach VOK","Sanktions-\nrelevante Kosten\ngemäß Art. 35","Einnahmen "]
[null,"Gesamtsumme: "]

{"sheet":"TEMPLATE Übersicht","index":6,"n_rows":47,"n_cols":12,"rows_kept":47,"cut":false,"hidden":true,"merged":[[8,0,8,1],[8,2,8,5],[16,0,16,11],[41,0,41,11],[10,0,10,1],[11,0,11,1],[13,2,13,5],[15,0,15,11],[6,0,6,1],[6,2,6,5],[0,0,0,11],[2,0,2,1],[2,2,2,5],[4,0,4,1],[4,2,4,5]]}
["Übersicht"]
[null,null,null,null,null,null,null,null,null,null,null,"RL/AMA v469.25 / Jan. 2022"]
["Betriebs-/Klientennummer: ",null,{"$f":"TRIM(Stm_ApplicantID)","v":""}]
[]
["Förderungswerber: ",null,{"$f":"TRIM(Stm_ApplicantName)","v":""}]
[]
["Antragsnummer: ",null,{"$f":"TRIM(Stm_ApplicationID)","v":""}]
[]
["Vorsteuerabzugsberechtigung: ",null,{"$f":"Stm_TaxDeduct","v":"Nein"}]
[]
["Genehmigter Zeitraum für  ",null,null,"Beginn","---","Ende"]
["Kostenanerkennung: ",null,null,{"$f":"IF(TRIM(Stm_SupportPeriodStart)=\"\",\"\",Stm_SupportPeriodStart)","v":""},"---",{"$f":"IF(TRIM(Stm_SupportPeriodEnd)=\"\",\"\",Stm_SupportPeriodEnd)","v":""}]
[]
[null,"Gruppierung nach:  ","Fördergegenstand"]
[]
["Buttons zur internen Verwendung der Bewilligenden Stelle"]
[]
[]
[]
[]
[]
[]
[]
[]
[]
[]
[]
[]
[]
[]
[]
[]
[]
[]
[]
[]
[]
[]
[]
[]
[31,1023,1,1,null,"Fördergegenstand","Teilprojekt","Codierung / Fördergegenstand"]
["Gesamtsumme"]
["Tabellenblatt","Kostenart","Fördergegenstand","Gesamtkosten\nbrutto","Gesamtkosten\nnetto","eingereichte\nKosten","verminderte Kosten\nnach VWK","anrechenbare Kosten\nnach VWK","verminderte Kosten nach VOK","anrechenbare Kosten nach VOK","Sanktions-\nrelevante Kosten\ngemäß Art. 35","Einnahmen "]
[]
[null,"Summe: "]
[]
[null,"Gesamtsumme: "]

{"sheet":"TEMPLATE Invest & Sachkosten","index":7,"n_rows":43,"n_cols":42,"rows_kept":43,"cut":false,"hidden":true,"merged":[[41,3,41,5],[41,7,41,13],[23,18,23,27],[11,2,11,3],[11,4,11,5],[23,2,23,17],[40,3,40,5],[40,7,40,13],[0,2,0,17],[1,16,1,17],[2,16,2,17],[4,2,4,3],[4,4,4,5],[23,38,23,41],[6,2,6,3],[6,4,6,5],[8,2,8,3],[8,4,8,5],[23,29,23,37],[13,2,13,3],[13,4,13,5],[16,2,16,3],[17,2,17,3],[19,2,19,5],[10,2,10,3],[10,4,10,5]]}
[":","Investkosten","Zahlungsantrag - Belegaufstellung für Investitionskosten"]
[":","Sachkosten","Zahlungsantrag - Belegaufstellung für Sachkosten"]
[":","Invest- & Sachkosten","Zahlungsantrag - Belegaufstellung für Investitions- und Sachkosten"]
["UBVbv",null,null,null,null,null,null,null,null,null,null,null,null,null,null,null,null,"RL/AMA v469.25 / Jan. 2022"]
["UBVbv",null,"Betriebs-/Klientennummer: "]
["UBVbv"]
["UBVbv",null,"Förderungswerber: "]
["UBVbv"]
["UBVbv",null,"Antragsnummer: "]
["UBVbv"]
["UBVbv",null,"Fördergegenstand: "]
[]
["UBVbv"]
["UBVbv",null,"Vorsteuerabzugsberechtigung: ",null,{"$f":"E15","v":"Ja"},null,null,"Nein"]
[null,null,null,null,{"$f":"IF(F15=1,\"Ja\",\"Nein\")","v":"Ja"},1]
["UBVbv"]
["UBVbv",null,"Genehmigter Zeitraum für  ",null,"Beginn","Ende"]
["UBVbv",null,"Kostenanerkennung: "]
["UBVbv"]
["UBVbv",null,"Buttons zur internen Verwendung der Bewilligenden Stelle"]
["UBVbv"]
["UBVbv"]
["-","-","UBVbv","UBVbv","UBVbv","UBVbv","UBV","UBVbv","UBV","UBVbv",null,"UBVbv",null,"UBV","UBV","UBV","UBV","UBVbv","BV","BV","BV","BV","BV","BV","BV","BV","BVbv","BVbv","V","V","V","V","V","V","V","V","Vv","Vv","BV","BV","BVbv","BVbv"]
["UBVbv",null,"Belege",null,null,null,null,null,null,null,null,null,null,null,null,null,null,null,"von der Bewilligenden Stelle im Rahmen der VWK auszufüllen",null,null,null,null,null,null,null,null,null,"von VOK auszufüllen","von der Bewilligenden Stelle auszufüllen (im Rahmen einer VOK)",null,null,null,null,null,null,null,null,"von der Bewilligenden Stelle auszufüllen"]
["UBVbv","Head","lfd. Nr.","Belegnr. / \nRechnungsnummer","Belegdatum","Firma bzw. Name","Bezeichnung (Ware, Leistung)","Zuordnung zu Teilprojekt \n(falls erforderlich)","Datum Saldierung\n(Zahlungs-\ndatum)","Belegbetrag \nbrutto","MwSt.\nSatz","Belegbetrag\nnetto","Belegbetrag\n(interne Rechenbasis)","davon nicht anrechenbare Kosten","nicht anrechenbare Skonti (%)","anrechenbare Kosten","Abzüge \nin %","eingereichte  \nKosten","Codierung\n(optional)","nicht anrechenbare zu vermindernde Kosten durch VWK","nicht anrechenbare zu vermindernde Skonti (%) durch VWK","verminderte Abzüge in % nach VWK","verminderte Kosten nach VWK","nicht anrechenbare zu sanktionierende Kosten durch VWK","nicht anrechenbare zu sanktionierende Skonti (%) durch VWK","sanktionierte Abzüge in % nach VWK","anrechenbare Kosten nach VWK","Anmerkung zur VWK","Feststellungen der VOK","nicht anrechenbare zu vermindernde Kosten durch VOK","nicht anrechenbare zu vermindernde Skonti (%) durch VOK","verminderte Abzüge in % nach VOK","verminderte Kosten nach VOK","nicht anrechenbare zu sanktionierende Kosten durch VOK","nicht anrechenbare zu sanktionierende Skonti (%) durch VOK","sanktionierte Abzüge in % nach VOK","anrechenbare Kosten nach VOK","Anmerkung zur VOK","ermittelte Kosten gemäß Art. 35","Sanktion in % gemäß Art. 35","sanktionsrelevante Kosten\ngemäß Art. 35","Anmerkung zur Sanktion gemäß Art. 35 (VO 640/2014)"]
["UBVbv","Receipt",1,null,null,null,null,null,null,null,0.2,{"$f":"IF(OR(ISBLANK(J26),ISBLANK(K26)),0,ROUND(J26 / (1+K26),2))","v":0},{"$f":"IF($E$14=\"Nein\",J26,L26)","v":0},null,null,{"$f":"ROUND((M26-N26)*(1-O26),2)","v":0},null,{"$f":"ROUND(P26*(1-Q26),2)","v":0},null,null,null,null,{"$f":"ROUND((M26-N26-T26)*(1-O26-U26)*(1-Q26-V26),2)","v":0},null,null,null,{"$f":"ROUND((M26-N26-T26-X26)*(1-O26-U26-Y26)*(1-Q26-V26-Z26),2)","v":0},null,null,null,null,null,{"$f":"ROUND((M26-N26-T26-X26-AD26)*(1-O26-U26-Y26-AE26)*(1-Q26-V26-Z26-AF26),2)","v":0},null,null,null,{"$f":"ROUND((M26-N26-T26-X26-AD26-AH26)*(1-O26-U26-Y26-AE26-AI26)*(1-Q26-V26-Z26-AF26-AJ26),2)","v":0},null,{"$f":"AK26","v":0},null,{"$f":"AM26*AN26","v":0}]
["UBVbv","Receipt",{"$f":"C26+1","v":2},null,null,null,null,null,null,null,0.2,0,0,null,null,0,null,0,null,null,null,null,0,null,null,null,0,null,null,null,null,null,0,null,null,null,0,null,0,null,0]
["UBVbv","Receipt",3,null,null,null,null,null,null,null,0.2,0,0,null,null,0,null,0,null,null,null,null,0,null,null,null,0,null,null,null,null,null,0,null,null,null,0,null,0,null,0]
["UBVbv","Receipt",4,null,null,null,null,null,null,null,0.2,0,0,null,null,0,null,0,null,null,null,null,0,null,null,null,0,null,null,null,null,null,0,null,null,null,0,null,0,null,0]
["UBVbv","Receipt",5,null,null,null,null,null,null,null,0.2,0,0,null,null,0,null,0,null,null,null,null,0,null,null,null,0,null,null,null,null,null,0,null,null,null,0,null,0,null,0]
["UBVbv","Receipt",6,null,null,null,null,null,null,null,0.2,0,0,null,null,0,null,0,null,null,null,null,0,null,null,null,0,null,null,null,null,null,0,null,null,null,0,null,0,null,0]
["UBVbv","Receipt",7,null,null,null,null,null,null,null,0.2,0,0,null,null,0,null,0,null,null,null,null,0,null,null,null,0,null,null,null,null,null,0,null,null,null,0,null,0,null,0]
[null,null,null,null,null,null,null,null,null,null,null,null,0,null,null,0,null,null,null,null,null,null,0,null,null,null,0,null,null,null,null,null,0,null,null,null,0]
["UBVbv","Receipt",{"$f":"C33+1","v":1},null,null,null,null,null,null,null,0.2,{"$f":"IF(OR(ISBLANK(J34),ISBLANK(K34)),0,ROUND(J34 / (1+K34),2))","v":0},0,null,null,0,null,{"$f":"ROUND(P34*(1-Q34),2)","v":0},null,null,null,null,0,null,null,null,0,null,null,null,null,null,0,null,null,null,0,null,{"$f":"AK34","v":0},null,{"$f":"AM34*AN34","v":0}]
["-","Tail",{"$f":"C34+1","v":2},"-- Do not Erase --","-- Do not Erase --","-- Do not Erase --","-- Do not Erase --",null,null,null,0.2,{"$f":"IF(OR(ISBLANK(J35),ISBLANK(K35)),0,J35 / (1+K35))","v":0},0,null,null,0,null,{"$f":"P35*(1-Q35)","v":0},null,null,null,null,0,null,null,null,0,null,null,null,null,null,0,null,null,null,0,null,{"$f":"AK35","v":0},null,{"$f":"AM35*AN35","v":0}]
["UBVbv",null,null,null,null,null,null,null,"Gesamtsumme:",{"$f":"ROUND(SUM(J26:J35),2)","v":0},null,{"$f":"ROUND(SUM(L26:L35),2)","v":0},null,null,null,{"$f":"SUM(P26:P35)","v":0},null,{"$f":"SUM(R26:R35)","v":0},null,{"$f":"ROUND(SUM(T26:T35),2)","v":0},null,null,{"$f":"SUM(W26:W35)","v":0},{"$f":"ROUND(SUM(X26:X35),2)","v":0},null,null,{"$f":"SUM(AA26:AA35)","v":0},null,null,{"$f":"ROUND(SUM(AD26:AD35),2)","v":0},null,null,{"$f":"SUM(AG26:AG35)","v":0},{"$f":"ROUND(SUM(AH26:AH35),2)","v":0},null,null,{"$f":"SUM(AK26:AK35)","v":0},null,null,null,{"$f":"SUM(AO26:AO35)","v":0}]
["U"]
["U"]
["U"]
["U"]
["U"]
["U",null,null,"Ort, Datum",null,null,null,"Unterschrift oder firmenmäßige Zeichnung"]
["U"]

{"sheet":"TEMPLATE Export LEW Inv&Sachk.","index":8,"n_rows":2,"n_cols":12,"rows_kept":2,"cut":false,"hidden":true,"merged":[]}
["LFNR","BELEG_NUMMER","BELEG_DATUM","FIRMA","BEZEICHNUNG","TEILPROJEKT","SALDO_DATUM","BETRAG_BRUTTO","MWST_DEZIMAL","KOSTEN_NICHT_ANRECHENB","SKONTI_NICHT_ANR","ABZUEGE_PROZ"]
[1,"01/2018","2018-03-25","Tom Tom","Kies","Haus","2019-09-26",4800,20,500,3,1]

{"sheet":"TABLE Units","index":9,"n_rows":29,"n_cols":6,"rows_kept":29,"cut":false,"hidden":true,"merged":[]}
["Einheiten - Alphabetisch sortiert",null,null,"Einheiten - Sortiert für Pop-Up"]
["BEZEICHNUNG","CODE",null,"BEZEICHNUNG"]
["Anzahl","ANZ",null,"m² - Quadratmeter",null,{"$f":"VLOOKUP(D3,gblUnits_UnitCodeLookup,2,2)","v":"M2"}]
["Anzahl/Stunde","ANS",null,"ha - Hektar",null,"HA"]
["Ar","A",null,"m³ - Kubikmeter",null,"M3"]
["Erntefestmeter","EFM",null,"Stück",null,"STK"]
["Festmeter","FM",null,"Laufmeter",null,"LFM"]
["ha - Hektar","HA",null,"Festmeter",null,"FM"]
["Hektoliter/Stunde","HLS",null,"Kilometer",null,"KM"]
["keine","KEI",null,"Ar",null,"A"]
["Kilogramm","KG",null,"Stunden",null,"STD"]
["Kilometer","KM",null,"Erntefestmeter",null,"EFM"]
["Laufmeter","LFM",null,"Liter",null,"LIT"]
["Liter","LIT",null,"Anzahl",null,"ANZ"]
["m² - Quadratmeter","M2",null,"Hektoliter/Stunde",null,"HLS"]
["m³ - Kubikmeter","M3",null,"Anzahl/Stunde",null,"ANS"]
["Stück","STK",null,"Tonne/Stunde",null,"TOS"]
["Stunden","STD",null,"keine",null,"KEI"]
["Tonne","T",null,"Tonne",null,"T"]
["Tonne/Stunde","TOS",null,"Kilogramm",null,"KG"]
[]
[]
[]
[]
[]
["BEZEICHNUNG","CODE"]
["Arbeitsleistung","ARBLEIST",null,"Arbeitsleistung"]
["Maschinenleistung","MALEIST",null,"Maschinenleistung"]
["Material","BEREITMA",null,"Bereitstellung von Materialleistungen"]

{"sheet":"TEMPLATE Standardkosten","index":10,"n_rows":40,"n_cols":38,"rows_kept":40,"cut":false,"hidden":true,"merged":[[21,34,21,37],[0,2,0,13],[2,2,2,4],[2,5,2,6],[4,2,4,4],[4,5,4,6],[17,2,17,6],[9,5,9,6],[21,25,21,33],[6,2,6,4],[39,2,39,4],[39,6,39,13],[15,2,15,4],[21,2,21,13],[38,2,38,4],[38,6,38,13],[6,5,6,6],[11,2,11,4],[11,5,11,6],[21,14,21,23],[8,2,8,4],[8,5,8,6],[9,2,9,4],[14,2,14,4]]}
["UBVbv",null,"Zahlungsantrag - Standardkosten"]
["UBVbv",null,null,null,null,null,null,null,null,null,null,null,null,"RL/AMA v469.25 / Jan. 2022"]
["UBVbv",null,"Betriebs-/Klientennummer: "]
["UBVbv"]
["UBVbv",null,"Förderungswerber: "]
["UBVbv"]
["UBVbv",null,"Antragsnummer: "]
["UBVbv"]
["UBVbv",null,"Fördergegenstand: "]
[]
["UBVbv"]
["UBVbv",null,"Vorsteuerabzugsberechtigung: ",null,null,{"$f":"F13","v":"Ja"}]
[null,null,null,null,null,{"$f":"IF(G13=1,\"Ja\",\"Nein\")","v":"Ja"},1]
["UBVbv"]
["UBVbv",null,"Genehmigter Zeitraum für  ",null,null,"Beginn","Ende"]
["UBVbv",null,"Kostenanerkennung: "]
["UBVbv"]
["UBVbv",null,"Buttons zur internen Verwendung der Bewilligenden Stelle"]
["UBVbv"]
["UBVbv"]
["-","-","UBVbv","UBVbv","UBV","UBVbv","UBVbv","UBVbv","UBV","UBV","UBV","UBV","UBVbv","UBV","BV","BV","BV","BV","BV","BV","BV","BV","BVbv","BVbv","Vv","V","V","V","V","V","V","V","Vv","Vv","BV","BV","BVbv","BVbv"]
["UBVbv",null,"Belege",null,null,null,null,null,null,null,null,null,null,null,"von der Bewilligenden Stelle im Rahmen der VWK auszufüllen",null,null,null,null,null,null,null,null,null,"von VOK auszufüllen","von der Bewilligenden Stelle auszufüllen (im Rahmen einer VOK)",null,null,null,null,null,null,null,null,"von der Bewilligenden Stelle auszufüllen"]
["UBVbv","Head","lfd. Nr.","Datum","Plausibilisierungsunterlage für Menge bzw €/ Einheit\n(BelegNr./ RechnungsNr.)\n\n(Nicht verpflichtend auszufüllen)"," Bezeichnung der Ware/ Leistung\n(lt. Beleg/Rechnung)\n\n(Nicht verpflichtend auszufüllen)","Anmerkungen zur Plausibilisierungsunterlage\n\n(Nicht verpflichtend auszufüllen)","Zuordnung zu Teilprojekt\n(falls erforderlich)","Einheit\n(z.B. Stunde, Stück, kg,...)","Menge","€ / Einheit","Kosten","Abzüge in %","eingereichte Kosten","Codierung\n(optional)","nicht anrechenbare zu vermindernde Menge durch VWK","nicht anrechenbarer zu vermindernder Einheitssatz durch VWK","nicht anrechenbare zu vermindernde Abzüge in % durch VWK","verminderte\nKosten nach VWK ","nicht anrechenbare zu sanktionierende Menge durch VWK","nicht anrechenbarer zu sanktionierender Einheitskostensatz durch VWK","nicht anrechenbare zu sanktionierende Abzüge in % durch VWK","anrechenbare\nKosten \nnach VWK","Anmerkung zur VWK","Feststellungen der VOK","nicht anrechenbare zu vermindernde Menge durch VOK","nicht anrechenbarer zu vermindernder Einheitssatz durch VOK","nicht anrechenbare zu vermindernde Abzüge in % durch VOK","verminderte\nKosten nach VOK ","nicht anrechenbare zu sanktionierende Menge durch VOK","nicht anrechenbarer zu sanktionierender Einheitskostensatz durch VOK","nicht anrechenbare zu sanktionierende Abzüge in % durch VOK","anrechenbare\nKosten \nnach VOK","Anmerkung zur VOK","ermittelte Kosten gemäß Art. 35","Sanktion in % gemäß Art. 35","sanktionsrelevante Kosten\ngemäß Art. 35","Anmerkung zur Sanktion gemäß Art. 35 (VO 640/2014)"]
["UBVbv","Receipt",1,null,null,null,null,null,null,null,null,{"$f":"ROUND(J24*K24,2)","v":0},null,{"$f":"ROUND(L24*(1-M24),2)","v":0},null,null,null,null,{"$f":"ROUND((J24-P24)*(K24-Q24)*(1-M24-R24),2)","v":0},null,null,null,{"$f":"ROUND((J24-P24-T24)*(K24-Q24-U24)*(1-M24-R24-V24),2)","v":0},null,null,null,null,null,{"$f":"ROUND((J24-P24-T24-Z24)*(K24-Q24-U24-AA24)*(1-M24-R24-V24-AB24),2)","v":0},null,null,null,{"$f":"ROUND((J24-P24-T24-Z24-AD24)*(K24-Q24-U24-AA24-AE24)*(1-M24-R24-V24-AB24-AF24),2)","v":0},null,{"$f":"AG24","v":0},null,{"$f":"AI24*AJ24","v":0}]
["UBVbv","Receipt",{"$f":"C24+1","v":2},null,null,null,null,null,null,null,null,0,null,0,null,null,null,null,0,null,null,null,0,null,null,null,null,null,0,null,null,null,0,null,0,null,0]
["UBVbv","Receipt",{"$f":"C25+1","v":3},null,null,null,null,null,null,null,null,0,null,0,null,null,null,null,0,null,null,null,0,null,null,null,null,null,0,null,null,null,0,null,0,null,0]
["UBVbv","Receipt",{"$f":"C26+1","v":4},null,null,null,null,null,null,null,null,0,null,0,null,null,null,null,0,null,null,null,0,null,null,null,null,null,0,null,null,null,0,null,0,null,0]
["UBVbv","Receipt",{"$f":"C27+1","v":5},null,null,null,null,null,null,null,null,0,null,0,null,null,null,null,0,null,null,null,0,null,null,null,null,null,0,null,null,null,0,null,0,null,0]
["UBVbv","Receipt",{"$f":"C28+1","v":6},null,null,null,null,null,null,null,null,0,null,0,null,null,null,null,0,null,null,null,0,null,null,null,null,null,0,null,null,null,0,null,0,null,0]
[]
["UBVbv","Receipt",{"$f":"C30+1","v":1},null,null,null,null,null,null,null,null,{"$f":"ROUND(J31*K31,2)","v":0},null,{"$f":"ROUND(L31*(1-M31),2)","v":0},null,null,null,null,{"$f":"ROUND((J31-P31)*(K31-Q31)*(1-M31-R31),2)","v":0},null,null,null,{"$f":"ROUND((J31-P31-T31)*(K31-Q31-U31)*(1-M31-R31-V31),2)","v":0},null,null,null,null,null,{"$f":"ROUND((J31-P31-T31-Z31)*(K31-Q31-U31-AA31)*(1-M31-R31-V31-AB31),2)","v":0},null,null,null,{"$f":"ROUND((J31-P31-T31-Z31-AD31)*(K31-Q31-U31-AA31-AE31)*(1-M31-R31-V31-AB31-AF31),2)","v":0},null,{"$f":"AG31","v":0},null,{"$f":"AI31*AJ31","v":0}]
["-","Tail",{"$f":"C31+1","v":2},null,null,"-- Do NOT Erase Gray Lines --",null,null,null,null,null,{"$f":"J32*K32","v":0},null,{"$f":"L32*(1-M32)","v":0},null,null,null,null,{"$f":"(J32-P32)*(K32-Q32)*(1-M32-R32)","v":0},null,null,null,{"$f":"(J32-P32-T32)*(K32-Q32-U32)*(1-M32-R32-V32)","v":0},null,null,null,null,null,{"$f":"ROUND((J32-P32-T32-Z32)*(K32-Q32-U32-AA32)*(1-M32-R32-V32-AB32),2)","v":0},null,null,null,{"$f":"(J32-P32-T32-Z32-AD32)*(K32-Q32-U32-AA32-AE32)*(1-M32-R32-V32-AB32-AF32)","v":0},null,{"$f":"AG32","v":0},null,{"$f":"AI32*AJ32","v":0}]
["UBVbv",null,null,null,null,null,null,null,null,null,"Gesamtsumme: ",{"$f":"SUM(L24:L32)","v":0},null,{"$f":"SUM(N24:N32)","v":0},null,null,null,null,{"$f":"SUM(S24:S32)","v":0},null,null,null,{"$f":"SUM(W24:W32)","v":0},null,null,null,null,null,{"$f":"SUM(AC24:AC32)","v":0},null,null,null,{"$f":"SUM(AG24:AG32)","v":0},null,null,null,{"$f":"SUM(AK24:AK32)","v":0}]
["U"]
["U"]
["U",null,"Ich bestätige hiermit als Förderungswerber die Richtigkeit der Angaben "]
["U"]
["U"]
["U"]
["U",null,"Ort, Datum",null,null,null,"Unterschrift oder firmenmäßige Zeichnung"]

{"sheet":"TEMPLATE Export LEW Stdkosten","index":11,"n_rows":2,"n_cols":10,"rows_kept":2,"cut":false,"hidden":true,"merged":[]}
["LFNR","PLAUS_UNTERLAGE","ANMERKUNG_PLAUS_UNTERL","BEZEICHNUNG","TEILPROJEKT","BELEG_DATUM","EINHEIT","MENGE","STD_KOST_SATZ","ABZUEGE_PROZ"]
[1,"Rechnung 32","Rechnung vorgelegt","Baulos 1","TP 1","2018-01-01","STD",20,12,50]

{"sheet":"TEMPLATE Unbare Sachleistungen","index":12,"n_rows":56,"n_cols":37,"rows_kept":56,"cut":false,"hidden":true,"merged":[[35,33,35,36],[28,2,28,4],[28,6,28,7],[54,2,54,4],[54,6,54,13],[35,13,35,22],[32,2,32,12],[35,2,35,12],[53,2,53,4],[53,6,53,13],[35,24,35,32],[29,2,29,4],[29,6,29,7],[31,2,31,12],[26,2,26,4],[26,6,26,7],[27,2,27,4],[15,2,15,4],[27,6,27,7],[22,2,22,4],[22,6,22,7],[24,6,24,7],[21,2,21,4],[21,6,21,7],[20,2,20,7],[17,2,17,6],[23,2,23,4],[23,6,23,7],[25,2,25,4],[25,6,25,7],[24,2,24,4],[0,2,0,12],[6,2,6,4],[6,5,6,6],[8,2,8,4],[8,5,8,6],[2,2,2,4],[4,5,4,6],[2,5,2,6],[4,2,4,4],[11,2,11,4],[11,5,11,6],[14,2,14,4],[9,2,9,4],[9,5,9,6]]}
["UBVbv",null,"Zahlungsantrag - Belegaufstellung unbare Eigenleistungen (=unbare Sachleistungen)"]
["UBVbv",null,null,null,null,null,null,null,null,null,null,null,"RL/AMA v469.25 / Jan. 2022"]
["UBVbv",null,"Betriebs-/Klientennummer: "]
["UBVbv"]
["UBVbv",null,"Förderungswerber: "]
["UBVbv"]
["UBVbv",null,"Antragsnummer: "]
["UBVbv"]
["UBVbv",null,"Fördergegenstand: "]
[]
["UBVbv"]
["UBVbv",null,"Vorsteuerabzugsberechtigung: ",null,null,{"$f":"F13","v":"Ja"}]
[null,null,null,null,null,{"$f":"IF(G13=1,\"Ja\",\"Nein\")","v":"Ja"},1]
["UBVbv"]
["UBVbv",null,"Genehmigter Zeitraum für  ",null,null,"Beginn","Ende"]
["UBVbv",null,"Kostenanerkennung: "]
["UBVbv"]
["UBVbv",null,"Buttons zur internen Verwendung der Bewilligenden Stelle"]
["UBVbv"]
["UBVbv"]
["UBVbv",null,"Leistungserbringer"]
["UBVbv","Head","Name des Leistungserbringers",null,null,"Verhältnis zum Förderungswerber*","Unterschrift**"]
["UBVbv","Worker"]
["UBVbv","Worker"]
["UBVbv","Worker"]
["UBVbv","Worker"]
["UBVbv","Worker"]
[]
["UBVbv","Worker"]
["-","Tail","-- Do not Erase --"]
["UBVbv"]
["UBVbv",null,"*Zum Beispiel: Verwandtschaftsverhältnis (Eltern, Geschwister, etc.), Teil des Förderungswerbers (z.B. Vereinsmitglied, Genossenschaftsmitglied, Mitglied der Personengemeinschaft etc.)"]
["UBVbv",null,"**Ich (Leistungserbringer) bestätige hiermit, die unten aufgelistete Tätigkeiten für den Förderungswerber durchgeführt zu haben:"]
["UBVbv"]
["-","-","UBVbv","UBV","UBVbv","UBVbv","UBVbv","UBVbv","UBV","UBV","UBV","UBV","UBVbv","BV","BV","BV","BV","BV","BV","BV","BV","BVbv","BVbv","V","V","V","V","V","V","V","V","Vv","Vv","BV","BV","BVbv","BVbv"]
["UBVbv",null,"Belege",null,null,null,null,null,null,null,null,null,null,"von der Bewilligenden Stelle im Rahmen der VWK auszufüllen",null,null,null,null,null,null,null,null,null,"von VOK auszufüllen","von der Bewilligenden Stelle auszufüllen (im Rahmen einer VOK)",null,null,null,null,null,null,null,null,"von der Bewilligenden Stelle auszufüllen"]
["UBVbv","Head","lfd. Nr.","Datum","Leistungserbringer","Art der Leistung /\nTätigkeit bzw.\neingebrachte Sachleistung","Zuordnung zu Teilprojekt\n(falls erforderlich)","Einheit\n(z.B. Stunde, Stück, kg,...)","Menge","beantragter Stunden- / Kostensatz","berechnete Kosten der Eigenleistung","Abzüge in %","eingereichte Kosten","Codierung\n(optional)","nicht anrechenbare zu vermindernde Menge durch VWK","nicht anrechenbarer zu vermindernder Einheitssatz durch VWK","nicht anrechenbare zu vermindernde Abzüge in % durch VWK","verminderte\nKosten nach VWK ","nicht anrechenbare zu sanktionierende Menge durch VWK","nicht anrechenbarer zu sanktionierender Einheitskostensatz durch VWK","nicht anrechenbare zu sanktionierende Abzüge in % durch VWK","anrechenbare\nKosten \nnach VWK","Anmerkung zur VWK","Feststellungen der VOK","nicht anrechenbare zu vermindernde Menge durch VOK","nicht anrechenbarer zu vermindernder Einheitssatz durch VOK","nicht anrechenbare zu vermindernde Abzüge in % durch VOK","verminderte\nKosten nach VOK ","nicht anrechenbare zu sanktionierende Menge durch VOK","nicht anrechenbarer zu sanktionierender Einheitskostensatz durch VOK","nicht anrechenbare zu sanktionierende Abzüge in % durch VOK","anrechenbare\nKosten \nnach VOK","Anmerkung zur VOK","ermittelte Kosten gemäß Art. 35","Sanktion in % gemäß Art. 35","sanktionsrelevante Kosten \ngemäß Art. 35","Anmerkung zur Sanktion gemäß Art. 35 (VO 640/2014)"]
["UBVbv","Receipt",1,null,null,null,null,null,null,null,{"$f":"ROUND(I38*J38,2)","v":0},null,{"$f":"ROUND(K38*(1-L38),2)","v":0},null,null,null,null,{"$f":"ROUND((I38-O38)*(J38-P38)*(1-L38-Q38),2)","v":0},null,null,null,{"$f":"ROUND((I38-O38-S38)*(J38-P38-T38)*(1-L38-Q38-U38),2)","v":0},null,null,null,null,null,{"$f":"ROUND((I38-O38-S38-Y38)*(J38-P38-T38-Z38)*(1-L38-Q38-U38-AA38),2)","v":0},null,null,null,{"$f":"ROUND((I38-O38-S38-Y38-AC38)*(J38-P38-T38-Z38-AD38)*(1-L38-Q38-U38-AA38-AE38),2)","v":0},null,{"$f":"AF38","v":0},null,{"$f":"AH38*AI38","v":0}]
["UBVbv","Receipt",{"$f":"C38+1","v":2},null,null,null,null,null,null,null,0,null,0,null,null,null,null,0,null,null,null,0,null,null,null,null,null,0,null,null,null,0,null,0,null,0]
["UBVbv","Receipt",3,null,null,null,null,null,null,null,0,null,0,null,null,null,null,0,null,null,null,0,null,null,null,null,null,0,null,null,null,0,null,0,null,0]
["UBVbv","Receipt",4,null,null,null,null,null,null,null,0,null,0,null,null,null,null,0,null,null,null,0,null,null,null,null,null,0,null,null,null,0,null,0,null,0]
["UBVbv","Receipt",5,null,null,null,null,null,null,null,0,null,0,null,null,null,null,0,null,null,null,0,null,null,null,null,null,0,null,null,null,0,null,0,null,0]
["UBVbv","Receipt",6,null,null,null,null,null,null,null,0,null,0,null,null,null,null,0,null,null,null,0,null,null,null,null,null,0,null,null,null,0,null,0,null,0]
["UBVbv","Receipt",7,null,null,null,null,null,null,null,0,null,0,null,null,null,null,0,null,null,null,0,null,null,null,null,null,0,null,null,null,0,null,0,null,0]
[]
["UBVbv","Receipt",{"$f":"C45+1","v":1},null,null,null,null,null,null,null,{"$f":"ROUND(I46*J46,2)","v":0},null,{"$f":"ROUND(K46*(1-L46),2)","v":0},null,null,null,null,{"$f":"ROUND((I46-O46)*(J46-P46)*(1-L46-Q46),2)","v":0},null,null,null,{"$f":"ROUND((I46-O46-S46)*(J46-P46-T46)*(1-L46-Q46-U46),2)","v":0},null,null,null,null,null,{"$f":"ROUND((I46-O46-S46-Y46)*(J46-P46-T46-Z46)*(1-L46-Q46-U46-AA46),2)","v":0},null,null,null,{"$f":"ROUND((I46-O46-S46-Y46-AC46)*(J46-P46-T46-Z46-AD46)*(1-L46-Q46-U46-AA46-AE46),2)","v":0},null,{"$f":"AF45","v":0},null,{"$f":"AH46*AI46","v":0}]
["-","Tail",{"$f":"C46+1","v":2},null,"-- Do Not Erase --",null,null,null,null,null,{"$f":"I47*J47","v":0},null,{"$f":"K47*(1-L47)","v":0},null,null,null,null,{"$f":"(I47-O47)*(J47-P47)*(1-L47-Q47)","v":0},null,null,null,{"$f":"(I47-O47-S47)*(J47-P47-T47)*(1-L47-Q47-U47)","v":0},null,null,null,null,null,{"$f":"ROUND((I47-O47-S47-Y47)*(J47-P47-T47-Z47)*(1-L47-Q47-U47-AA47),2)","v":0},null,null,null,{"$f":"(I47-O47-S47-Y47-AC47)*(J47-P47-T47-Z47-AD47)*(1-L47-Q47-U47-AA47-AE47)","v":0},null,{"$f":"AF46","v":0},null,{"$f":"AH47*AI47","v":0}]
["UBVbv",null,null,null,null,null,null,null,null,"Gesamtsumme: ",{"$f":"SUM(K38:K47)","v":0},null,{"$f":"SUM(M38:M47)","v":0},null,null,null,null,{"$f":"SUM(R38:R47)","v":0},null,null,null,{"$f":"SUM(V38:V47)","v":0},null,null,null,null,null,{"$f":"SUM(AB38:AB47)","v":0},null,null,null,{"$f":"SUM(AF38:AF47)","v":0},null,null,null,{"$f":"SUM(AJ38:AJ47)","v":0}]
["U"]
["U"]
["U",null,"Ich bestätige hiermit als Förderungswerber die Richtigkeit der Angaben "]
["U"]
["U"]
["U"]
["U",null,"Ort, Datum",null,null,null,"Unterschrift oder firmenmäßige Zeichnung"]
["U"]

{"sheet":"TEMPLATE Export LEW Unbare Sach","index":13,"n_rows":2,"n_cols":10,"rows_kept":2,"cut":false,"hidden":true,"merged":[]}
["LFNR","BELEG_DATUM","ART_UNB_SACHL","LEISTUNGSERBRINGER","BEZEICHNUNG","TEILPROJEKT","EINHEIT","MENGE","STD_KOST_SATZ","ABZUEGE_PROZ"]
[1,"2018-10-10","ARBLEIST","Hannes Test, 30.10.2018","Test 1","Teilprojekt","M2",50,12,0]

{"sheet":"TEMPLATE Personalkosten","index":14,"n_rows":246,"n_cols":13,"rows_kept":246,"cut":false,"hidden":true,"merged":[[12,4,12,5],[12,6,12,11],[8,4,8,5],[8,6,8,11],[10,4,10,5],[10,6,10,11],[35,0,35,11],[36,0,36,11],[13,4,13,5],[13,6,13,11],[33,0,33,11],[34,0,34,11],[0,10,0,11],[6,4,6,5],[6,6,6,11],[1,0,1,11],[2,0,2,11],[4,4,4,5],[4,6,4,11]]}
[null,null,null,null,null,null,null,null,null,null,"RL/AMA v469.25 / Jan. 2022"]
["Zahlungsantrag - Belegaufstellung Personalkosten"]
[{"$f":"\"inkl. Obergrenzen für \" &D17","v":"inkl. Obergrenzen für 2022"}]
[]
["Kurzbezeichung des Vorhabens  ",null,null,"X"]
[]
["Betriebs-/Klientennummer ",null,null,"X"]
[]
["Förderungswerber ",null,null,"X"]
[]
["Antragsnummer ",null,null,"X"]
[]
["Fördergegenstand ",null,null,"X"]
["Fördergegenstand ",null,null,"X"]
[]
["Bitte wählen Sie ein Abrechungsmodell:",null,null,"D"]
[null,{"$f":"DATE(2030,12,31)","v":"2030-12-31"},"Ja",{"$f":"'TABLE Gehaltsgrenzen'!A1","v":2022}]
[null,null,"Nein",33553408]
[null,null,"No","D"]
[]
[]
[]
[null,null,null,"B",null,null,"ACHTUNG: Diese Berechnungsmethode darf ab 2021 nicht mehr verwendet werden!"]
[]
[]
[]
[null,null,null,"A"]
[]
[]
[]
[null,null,null,"C",null,null,"ACHTUNG: Diese Berechnungsmethode darf ab 2021 nicht mehr verwendet werden!"]
[]
[]
["Personalkostenabrechnung auf Ist-Kosten Basis (Stundensatzermittlung)"]
["Personalkostenabrechnung auf Basis von standardisierten Einheitkosten (Lohnnebenkosten auf Ist-Basis)"]
["Personalkostenabrechung auf Ist-Kosten-Basis \n(Mitarbeiter ist für einen bestimmten Zeitraum zu 100% dem Projekt zuordenbar)"]
["Personalkostenabrechnung mit standardisierten Einheitskosten (%-Zuschlag für Lohnnebenkosten)"]
[null,"Type","Valid for","Visible for"]
["MitarbeiterIn (Name)","In","ABCD","ABCD","Name eintragen","Shadow Copy"]
["Jahr für die Berechnung des Stundensatzes (JJJJ)","In","ABCD","ABCD",2021,2021]
["Beginn Zeitraum für die Berechnung des Stundensatzes (TT.MM)","In","ABCD","ABCD","2017-01-01",{"$f":"E41","v":"2017-01-01"}]
["Ende Zeitraum für die Berechung des Stundensatzes (TT.MM)","In","ABCD","ABCD","2017-12-31",{"$f":"E42","v":"2017-12-31"},null,null,null,null,null,null,"AMA"]
["Beschäftigungsgruppe","In","D","D","„normale“ Beschäftigungsgruppen","„normale“ Beschäftigungsgruppen"]
["   Volles Datums des Beginns des Zeitraums zur Stundensatzberechnung (Tagesberechnung)","Calc","ABCD","-",{"$f":"DATE(E40,MONTH(E41),DAY(E41))","v":"2021-01-01"},{"$f":"DATE(F40,MONTH(F41),DAY(F41))","v":"2021-01-01"}]
["   Volles Datum des Endes der Zeitraums zu Stundensatzberechnung (Tagesberechnung)","Calc","ABCD","-",{"$f":"DATE(E40,MONTH(E42),DAY(E42))","v":"2021-12-31"},{"$f":"DATE(F40,MONTH(F42),DAY(F42))","v":"2021-12-31"}]
["   Beginn des Zeitraums zur Stundensatzberechnung im Kalendermonat (Tagesberechnung)","Calc","ABCD","-",{"$f":"IF(AND(MONTH(E44)=2,DAY(E44)>=28),30,MIN(DAY(E44),30))","v":1},{"$f":"IF(AND(MONTH(F44)=2,DAY(F44)>=28),30,MIN(DAY(F44),30))","v":1}]
["   Ende des Zeitraums zur Stundensatzberechnung im Kalendermonat (Tagesberechnung)","Calc","ABCD","-",{"$f":"IF(AND(MONTH(E45)=2,DAY(E45)>=28),30,MIN(DAY(E45),30))","v":30},{"$f":"IF(AND(MONTH(F45)=2,DAY(F45)>=28),30,MIN(DAY(F45),30))","v":30}]
["   Dauer des Zeitraums zur Stundensatzberechnung in Tagen (Tagesberechnung)","Calc","ABCD","-",{"$f":"IF(E45-E44<=28,MAX(0,E45-E44+1),360*(YEAR(E45)-YEAR(E44)) + 30*(MONTH(E45)-MONTH(E44)) + (E47-E46) + 1)","v":360},{"$f":"IF(F45-F44<=28,MAX(0,F45-F44+1),360*(YEAR(F45)-YEAR(F44)) + 30*(MONTH(F45)-MONTH(F44)) + (F47-F46) + 1)","v":360}]
["Anzahl der Monate für die Berechnung des Stundensatzes","In","ABCD","-",12,12]
["   Dauer des Zeitraums zur Stundensatzberechnung in Tagen (Monatsberechnung)","Calc","ABCD","-",{"$f":"30*E49","v":360},{"$f":"30*F49","v":360}]
["Bruttojahresbezug","In","D","D",null,0]
["Dienstvertrag enthält eine Überstundenpauschale (All-In-Vertrag)","In","ABCD","ABCD","Nein","Nein"]
["Wochenarbeitsstunden (bei Bruttojahresbezug)","In","D","D"]
["Pauschalstundensatz (ex. Mode D)","In","-","-"]
["Beginn der Tätigkeit im Kalenderjahr ","In","C","C"]
["Ende der Tätigkeit im Kalenderjahr","In","C","C"]
[null,null,null,"-"]
["förderb. Bruttogehalts(Lohn)kosten in €",null,null,"ABC",{"$f":"SUM(E59:E65)","v":0},{"$f":"SUM(F59:F65)","v":0}]
["Nettogehalt (exkl. Diäten, km-Geld, …) ",null,null,"AC",0,0]
["Nettogehalt (exkl. Diäten, km-Geld, Überstundenentgelt, …)",null,null,"B",0,0]
["Dienstnehmeranteil Sozialversicherung (SV) auf LF",null,null,"ABC",0,0]
["Dienstnehmeranteil Sozialversicherung (SV) auf SZ",null,null,"ABC",0,0]
["Dienstnehmeranteil Lohnsteuer (LST) auf LF",null,null,"ABC",0,0]
["Dienstnehmeranteil Lohnsteuer (LST) auf SZ",null,null,"ABC",0,0]
["sonstige Abzüge (e-card)",null,null,"ABC",0,0]
["nicht förderbare Bruttogehalts(Lohn)kosten in €",null,null,"ABC",{"$f":"E67+E68","v":0},{"$f":"F67+F68","v":0}]
["Überstunden (Grundlohn + Zuschläge)",null,null,"B",0,0]
["sonstige Sonderzahlungen",null,null,"ABC",0,0]
["förderbare Personalnebenkosten DG-Anteil - gesamt in €",null,null,"ABC",{"$f":"SUM(E70:E76)","v":0},{"$f":"SUM(F70:F76)","v":0}]
["Dienstgeberanteil Sozialversicherung (SV) auf LF ",null,null,"ABC",0,0]
["Dienstgeberanteil Sozialversicherung (SV) auf SZ",null,null,"ABC",0,0]
["Dienstgeberbeitrag (DB) zum FLAF",null,null,"ABC",0,0]
["Zuschlag zum Dienstgeberbeitrag (DZ)",null,null,"ABC",0,0]
["Dienstgeberabgabe - U-Bahn-Steuer (nur in Wien)",null,null,"ABC",0,0]
["Kommunalsteuer",null,null,"ABC",0,0]
["Mitarbeiter-/Betriebl. Vorsorgekasse (MV / BV) ",null,null,"ABC",0,0]
["Personalnebenkosten nicht förderbar in €",null,null,"ABC",{"$f":"SUM(E78:E79)","v":0},{"$f":"SUM(F78:F79)","v":0}]
["freiwillige Unternehmensleistungen",null,null,"ABC",0,0]
["Aliquote Nebenkosten f. nicht förderb. Bruttobezüge",null,null,"ABC",{"$f":"IF(E58=0,0,(E66+E78)/(E58+E66+E78)*E69)","v":0},{"$f":"IF(F58=0,0,(F66+F78)/(F58+F66+F78)*F69)","v":0}]
["Summe förderbarer direkter Personalkosten in €",null,null,"ABC",{"$f":"E58+E69-E79","v":0},{"$f":"F58+F69-F79","v":0}]
["Summe förderb. direkter Personalk. f. Tätigkeitszeitraum in €.","Calc","ABC","C",{"$f":"E80*E93/E92","v":0},{"$f":"F80*F93/F92","v":0}]
["Personalkostenobergrenze in €","Calc","ABCD","ABC",{"$f":"E118","v":84620},{"$f":"F118","v":84620}]
["Personalkostenobergrenze in f. Tätigkeitsz. in €","Calc","C","C",{"$f":"E119","v":84620},{"$f":"F119","v":84620}]
["Wochenarbeitsstunden","In","ABC","ABC",0,0]
["Tatsächlich geleistete Arbeitszeit in Stunden ","Calc","ABCD","A",{"$f":"IF(Labour_SelectedCalcTypeCell=\"A\",E86,E102)","v":1720},{"$f":"IF(Labour_SelectedCalcTypeCell=\"A\",F86,F102)","v":1720}]
["Anwesenheitsstunden inkl. Überstunden","In","A","A",0,0]
[null,null,null,"-"]
["   Bruttobezüge","Calc","ABCD","-",{"$f":"IF(Labour_SelectedCalcTypeCell=\"D\",E51,E81)","v":0},{"$f":"IF(Labour_SelectedCalcTypeCell=\"D\",F51,F81)","v":0}]
["   Beginn der Tätigkeit im Kalendermonat (Mode C)","Calc","C","-",{"$f":"IF(AND(MONTH(E55)=2,DAY(E55)>=28),30,MIN(DAY(E55),30))","v":0},{"$f":"IF(AND(MONTH(F55)=2,DAY(F55)>=28),30,MIN(DAY(F55),30))","v":0}]
["   Ende der Tätigkeit im Kalendermonat (Mode C)","Calc","C","-",{"$f":"IF(AND(MONTH(E56)=2,DAY(E56)>=28),30,MIN(DAY(E56),30))","v":0},{"$f":"IF(AND(MONTH(F56)=2,DAY(F56)>=28),30,MIN(DAY(F56),30))","v":0}]
["   Dauer der Tätigkeit in Tagen (Mode C)","Calc","C","-",{"$f":"360*(YEAR(E56)-YEAR(E55)) + 30*(MONTH(E56)-MONTH(E55)) + (E90-E89) + 1","v":1},{"$f":"360*(YEAR(F56)-YEAR(F55)) + 30*(MONTH(F56)-MONTH(F55)) + (F90-F89) + 1","v":1}]
["   Abgerechnete Tage","Calc","ABCD","-",{"$f":"E48","v":360},{"$f":"F48","v":360}]
["   Dauer der Tätigkeit in Tagen","Calc","ABCD","-",{"$f":"IF(Labour_SelectedCalcTypeCell=\"C\",E91,E92)","v":360},{"$f":"IF(Labour_SelectedCalcTypeCell=\"C\",F91,F92)","v":360}]
["   Wochenarbeitsstunden Vollzeit","Const.","ABCD","-",40,40]
["  Jahresarbeitsstunden Vollzeit (ohne Überstunden)","Const.","ABCD","-",{"$f":"VLOOKUP(E43,BeschaeftTable,5,FALSE)","v":1720},{"$f":"VLOOKUP(F43,BeschaeftTable,5,FALSE)","v":1720}]
["  Jahresarbeitsstunden Vollzeit (All-In-Dienstverträge)","Const.","D","-",{"$f":"VLOOKUP(E43,BeschaeftTable,6,FALSE)","v":1900},{"$f":"VLOOKUP(F43,BeschaeftTable,6,FALSE)","v":1900}]
["  max. abrechenbare Überstunden (Nicht All-In-Dienstverträge)","Const.","D","-",180,180]
["  Jahresarbeitsstunden Vollzeit (f. realen Vertrag)","Calc","ABCD","-",{"$f":"IF(UPPER(E52)=\"JA\",E96,E95)","v":1720},{"$f":"IF(UPPER(F52)=\"JA\",F96,F95)","v":1720}]
["   Wochenarbeitsstunden Teilzeit","Calc","ABCD","-",{"$f":"IF(Labour_SelectedCalcTypeCell=\"D\",MIN(E53,E94),MIN(E84,E94))","v":40},{"$f":"IF(Labour_SelectedCalcTypeCell=\"D\",MIN(F53,F94),MIN(F84,F94))","v":40}]
["  Jahresarbeitsstunden Teilzeit (f. realen Vertrag)","Calc","ABCD","-",{"$f":"E98*E99/E94","v":1720},{"$f":"F98*F99/F94","v":1720}]
["   Arbeitsstunden Teilzeit / Abrechnungszeitraum (f. realen Vertrag)","Calc","ABCD","-",{"$f":"E100*E92/360","v":1720},{"$f":"F100*F92/360","v":1720}]
["   Arbeitsstunden Teilzeit / Tätigkeitszeitraum (f. realen Vertrag)","Calc","ABCD","-",{"$f":"IF(Labour_SelectedCalcTypeCell=\"A\",E86,E100*E93/360)","v":1720},{"$f":"IF(Labour_SelectedCalcTypeCell=\"A\",F86,F100*F93/360)","v":1720}]
["   Bruttobezug pro Jahr (f. reale Wochenarbeitsstunden)","Calc","D",null,{"$f":"E88 * (360/E92)","v":0},{"$f":"F88 * (360/F92)","v":0}]
["   Bruttobezug pro Jahr Vollzeitäquivalent","Calc","D","-",{"$f":"IF(E99=0,0,E103 * (E94/E99))","v":0},{"$f":"IF(F99=0,0,F103 * (F94/F99))","v":0}]
["   Bruttobezug in €/Std","Calc","D","-",{"$f":" ROUND(IF(E102=0,0,E88 / E102),5)","v":0},{"$f":"ROUND(IF(F102=0,0,F88 / F102),5)","v":0}]
["   Lohnnebenkosten für vollen Bruttolohn","Calc","D","-",{"$f":"VLOOKUP(E43,BeschaeftTable,3,FALSE)","v":8.5281999999999997E-2},{"$f":"VLOOKUP(F43,BeschaeftTable,3,FALSE)","v":8.5281999999999997E-2}]
["   Lohnnebenkosten für max. Höchstbemessungsgrundlage","Calc","D","-",{"$f":"VLOOKUP(E43,BeschaeftTable,4,FALSE)","v":0.210394},{"$f":"VLOOKUP(F43,BeschaeftTable,4,FALSE)","v":0.210394}]
["   Lohnkosten Fixwert","Calc","D","-",{"$f":"VLOOKUP(E43,BeschaeftTable,7,FALSE)","v":0},{"$f":"VLOOKUP(F43,BeschaeftTable,7,FALSE)","v":0}]
["   Lohnkosten Teilzeit / Jahr (inkl. Lohnnebenkosten)","Calc","D","-",{"$f":"(1+E106)*E103+E107*MIN(E103,E113)","v":0},{"$f":"(1+F106) * F103 + F107 * MIN(F103,E113)","v":0}]
["   Lohnkosten Teilzeit / Abrechnungszeitraum (inkl. Lohnnebenkosten)","Calc","ABD","-",{"$f":"IF(Labour_SelectedCalcTypeCell<=\"B\",E80,E109*E92/360)","v":0},{"$f":"IF(Labour_SelectedCalcTypeCell<=\"B\",F80,F109*F92/360)","v":0}]
["   Lohnkosten in €/Std (inkl. Lohnnebenkosten)","Calc","D","-",{"$f":"IF(E108>0,E108,ROUND(IF(E102=0,0,E110 / E102),5))","v":0},{"$f":"IF(F108>0,F108,ROUND(IF(F102=0,0,F110 / F102),5))","v":0}]
["   Referenzjahr für Höchstbemessungsgrundlage / Gehalt für Bundesbeamte","Calc","ABCD","-",{"$f":"IF(Labour_SelectedCalcTypeCell=\"C\",E40,E148)","v":2021},{"$f":"IF(Labour_SelectedCalcTypeCell=\"C\",F40,F148)","v":2021}]
["   ASVG Höchstbemessungsgrundlage ","Lookup","ABCD","-",{"$f":"VLOOKUP(E112,'TABLE Gehaltsgrenzen'!$A$3:$C$19,3)","v":77700},{"$f":"VLOOKUP(F112,'TABLE Gehaltsgrenzen'!$A$3:$C$19,3)","v":77700}]
["   Gehalt für Bundesbeamte der allgem.Verwaltung","Lookup","ABCD","-",{"$f":"VLOOKUP(E112,'TABLE Gehaltsgrenzen'!$A$3:$C$19,2)","v":84620},{"$f":"VLOOKUP(F112,'TABLE Gehaltsgrenzen'!$A$3:$C$19,2)","v":84620}]
["   Gehalt für Bundesbeamte VII/2 ggf. mit Überstd. (f. realen Vertrag)","Calc ","ABD","-",{"$f":"IF(UPPER(E52)=\"JA\",E114*E96/E95,E114)","v":84620},{"$f":"IF(UPPER(F52)=\"JA\",F114*F96/F95,F114)","v":84620}]
["   Arbeitsstunden Teilzeit / Tätigkeitszeitraum (f. Beamte)","Calc","ABCD",null,{"$f":"IF(Labour_SelectedCalcTypeCell=\"A\",E86,E98*E93/360*E99/E94)","v":1720},{"$f":"IF(Labour_SelectedCalcTypeCell=\"A\",F86,F98*F93/360*F99/F94)","v":1720}]
["   Jahresgehalt für Beamte Teilzeit in €/Jahr","Calc","ABCD","-",{"$f":"E115*E99/E94","v":84620},{"$f":"F115*F99/F94","v":84620}]
["   Gehalt für Beamte - Teilzeit in € / Abrechnungszeitraum","Calc","ABCD","-",{"$f":"E117*E92/360","v":84620},{"$f":"F117*F92/360","v":84620}]
["   Gehalt für Beamte - Teilzeit in € / Tätigkeitszeitraum","Calc","ABCD","-",{"$f":"E117*E93/360","v":84620},{"$f":"F117*F93/360","v":84620}]
["   Stundenlohn für Beamte in €/Std","Calc","ABCD","-",{"$f":"ROUND(IF(E116=0,0,E118/E116),5)","v":49.197670000000002},{"$f":"ROUND(IF(F116=0,0,F118/F116),5)","v":49.197670000000002}]
["Berechneter Stundensatz in €/Std","Calc","D","D",{"$f":"E111","v":0},{"$f":"F111","v":0}]
["Personalkostenobergrenze in €/Std","Calc","D","D",{"$f":"E120","v":49.197670000000002},{"$f":"F120","v":49.197670000000002}]
["Anrechenbarer Stundensatz in €/Std","Calc","D","D",{"$f":"MIN(E121,E122)","v":0},{"$f":"MIN(F121,F122)","v":0}]
[null,null,null,"-"]
["Berechneter Stundensatz in €/Std","Calc","AB","AB",{"$f":"IF(E85=0,0,E80/E85)","v":0},{"$f":"IF(F85=0,0,F80/F85)","v":0}]
["Stundenlohn für Beamte in €/Std","Calc","AB","AB",{"$f":"IF(Labour_SelectedCalcTypeCell=\"A\",IF(E85=0,0,ROUND(E82/E85,5)),E120)","v":49.197670000000002},{"$f":"IF(Labour_SelectedCalcTypeCell=\"A\",IF(F85=0,0,ROUND(F82/F85,5)),F120)","v":49.197670000000002}]
["Anrechenbarer Stundensatz in €","Calc","ABD","AB",{"$f":" IF(Labour_SelectedCalcTypeCell=\"D\",E123,ROUND(MIN(E125,E126),5))","v":0},{"$f":"E127","v":0}]
["Anrechenbarer Stundensatz in € nach VWK durch BST","Calc","ABD","AB",{"$f":"E127","v":0},{"$f":" IF(Labour_SelectedCalcTypeCell=\"D\",F123,ROUND(IF(F85=0,0,MIN(F125,F126)),5))","v":0}]
["anrechenbare Personalkosten in €","Calc","C","C",{"$f":"ROUND(MIN(E80,E82)*E91/E92,2)","v":0},{"$f":"E129","v":0}]
["anrechenbare Personalkosten nach VWK in €","Calc","C","C",{"$f":"E129","v":0},{"$f":"ROUND(MIN(F80,F82)*F91/F92,2)","v":0}]
["Abzüge in % (zB nicht förderbarer Gebietskörperschaftsanteil)","In","C","C",0,0]
["eingereichte anrechenb. Personalkosten in €","Calc","C","C",{"$f":"ROUND(E129 *(1-E131),2)","v":0},{"$f":"ROUND(F129*(1-F131),2)","v":0},{"$f":"E132","v":0},{"$f":"F132","v":0},null,null,null,null,{"$f":"IF(Labour_DataSubmittedCell=\"No\",G132,H132)","v":0}]
["eingereichte anrechenb. Personalkosten nach VWK in €","Calc","C","C",{"$f":"ROUND(E130*(1-E131),2)","v":0},{"$f":"ROUND(F130*(1-F131),2)","v":0},{"$f":"E133","v":0},{"$f":"F133","v":0},null,null,null,null,{"$f":"IF(Labour_DataSubmittedCell=\"No\",G133,H133)","v":0}]
["eingereichte anrechenb. Gemeinkosten (Pauschalsatz in %)","Calc","C","C",0,0]
["eingereichte anrechenb. Gemeinkosten in €","Calc","C","C",{"$f":"ROUND(E132*E134,2)","v":0},{"$f":"ROUND(F133*F134,2)","v":0},{"$f":"E135","v":0},0,null,null,null,null,{"$f":"IF(Labour_DataSubmittedCell=\"No\",G135,H135)","v":0}]
["eingereichte anrechenb. Gemeinkosten in € nach VWK","Calc","C","-",{"$f":"ROUND(E135,2)","v":0},{"$f":"ROUND(F133*F134,2)","v":0},0,0,null,null,null,null,{"$f":"IF(Labour_DataSubmittedCell=\"No\",G136,H136)","v":0}]
["einger. anrechenb. Personalkosten inkl. Gemeinkosten in €","Calc","C","C",{"$f":"ROUND(E132+E135,2)","v":0},{"$f":"ROUND(F132+F135,2)","v":0},0,0,null,null,null,null,{"$f":"IF(Labour_DataSubmittedCell=\"No\",G137,H137)","v":0}]
["einger. anrechenb. Personalkosten inkl. Gemeink. nach VWK","Calc","C","C",{"$f":"ROUND(E133*(1+E134),2)","v":0},{"$f":"ROUND(F133*(1+F134),2)","v":0},0,0,null,null,null,null,{"$f":"IF(Labour_DataSubmittedCell=\"No\",G138,H138)","v":0}]
[null,null,null,"ABCD"]
["Berechnete Überweisungen laut Jahreslohnkonto",null,null,"AC",{"$f":"E40","v":2021},{"$f":"F40","v":2021}]
["Sozialversicherung",null,null,"AC",{"$f":"E61+E62+E65+E70+E71+E76","v":0},{"$f":"F61+F62+F65+F70+F71+F76","v":0}]
["Finanzamt",null,null,"AC",{"$f":"E63+E64+E72+E73","v":0},{"$f":"F63+F64+F72+F73","v":0}]
["Kommunalsteuer",null,null,"AC",{"$f":"E75","v":0},{"$f":"F75","v":0}]
["Nettogehalt",null,null,"AC",{"$f":"E59+E60","v":0},{"$f":"F59+F60","v":0}]
["Summe",null,null,"AC",{"$f":"SUM(E141:E144)","v":0},{"$f":"SUM(F141:F144)","v":0}]
[null,null,null,"AC"]
["Gesamtstundenübersicht",null,null,"ABD"]
["Abgerechnete Tätigkeiten beziehen sich auf das Jahr (JJJJ)",null,null,"ABD",{"$f":"E40","v":2021},{"$f":"E148","v":2021}]
["Beginn des Beschäftigungszeitraums im Kalenderjahr (TT.MM)","In","ABD","ABD","2016-01-01",{"$f":"E149","v":"2016-01-01"}]
["Ende des Beschäftigungszeitraums im Kalenderjahr (TT.MM)","In","ABD","ABD","2016-12-31",{"$f":"E150","v":"2016-12-31"}]
["   Volles Datum des Beginns der Beschäftigung (Tagesberechnung - Mode ABD)","Calc","ABD","-",{"$f":"DATE(E148,MONTH(E149),DAY(E149))","v":"2021-01-01"},{"$f":"DATE(F148,MONTH(F149),DAY(F149))","v":"2021-01-01"}]
["   Volles Datum des Endes der Beschäftigung (Tagesberechnung - Mode ABD)","Calc","ABD","-",{"$f":"DATE(E148,MONTH(E150),DAY(E150))","v":"2021-12-31"},{"$f":"DATE(F148,MONTH(F150),DAY(F150))","v":"2021-12-31"}]
["   Beginn der Beschäftigung im Kalendermonat (Tagesberechnung - Mode ABD)","Calc","ABD","-",{"$f":"IF(AND(MONTH(E151)=2,DAY(E151)>=28),30,MIN(DAY(E151),30))","v":1},{"$f":"IF(AND(MONTH(F151)=2,DAY(F151)>=28),30,MIN(DAY(F151),30))","v":1}]
["   Ende der Beschäftigung im Kalendermonat (Tagesberechnung - Mode ABD)","Calc","ABD","-",{"$f":"IF(AND(MONTH(E152)=2,DAY(E152)>=28),30,MIN(DAY(E152),30))","v":30},{"$f":"IF(AND(MONTH(F152)=2,DAY(F152)>=28),30,MIN(DAY(F152),30))","v":30}]
["   Dauer der Beschäftigung in Tagen (Tagesberechnung - Mode ABD)","Calc","ABD","-",{"$f":"IF(E152-E151<=28,MAX(0,E152-E151+1),360*(YEAR(E152)-YEAR(E151)) + 30*(MONTH(E152)-MONTH(E151)) + (E154-E153) + 1)","v":360},{"$f":"IF(F152-F151<=28,MAX(0,F152-F151+1),360*(YEAR(F152)-YEAR(F151)) + 30*(MONTH(F152)-MONTH(F151)) + (F154-F153) + 1)","v":360}]
["Anzahl der beschäftigten Monate (max. 12 Monate / Mitarbeiter) ","Obsolete","ABD","-",12,12]
["   Dauer der Tätigkeit in Tagen (Monatsberechnung - Mode ABD)","Calc","ABD","-",{"$f":"30*MIN(E156,12)","v":360},{"$f":"30*MIN(F156,12)","v":360}]
["Bruttobezug enthält ausbezahlte Überstd. (max. 180 Std./Jahr)","In","ABD","ABD","Nein","Nein"]
["Anzahl der Wochenarbeitsstunden ",null,null,"ABD"]
[{"$f":"\"Für \" & IF(TRIM(G13)=\"\",IF(TRIM(G5)=\"\",\"dieses Vorhaben\",G5),G13) & \" geleistete Stunden\"","v":"Für dieses Vorhaben geleistete Stunden"},null,null,"ABD",null,0]
[{"$f":"\"Summe der bereits für \" & IF(TRIM(G13)=\"\",IF(TRIM(G5)=\"\",\"dieses Vorhaben\",G5),G13) & \" abgerechnete Stunden\"","v":"Summe der bereits für dieses Vorhaben abgerechnete Stunden"},null,null,"ABD",null,0]
["  Max. akzeptable Arbeitsstunden (Vollzeit / Jahr)",null,"ABD","-",{"$f":"(IF(E52=\"Ja\",E96,IF(E158=\"Ja\",E95+E97,E95)))","v":1720},{"$f":"(IF(F52=\"Ja\",F96,IF(F158=\"Ja\",F95+F97,F95)))","v":1720}]
["  Max. akzeptable Arbeitsstunden (Teilzeit / Jahr)",null,"ABD","-",{"$f":"E162*MIN(E159,E94)/E94","v":1720},{"$f":"F162*MIN(F159,F94)/F94","v":1720}]
["  Max. akzeptable Arbeitsstunden (Teilzeit / Beschäftigungszeitraum)",null,"ABD","-",{"$f":"E163*MIN(E155,360)/360","v":1720},{"$f":"F163*MIN(F155,360)/360","v":1720}]
["  Akzeptable, tatsächlich gearbeitete Stunden",null,"ABD","-",{"$f":"IF(Labour_SelectedCalcTypeCell<>\"A\",E164,MIN(E164,E85))","v":1720},{"$f":"IF(Labour_SelectedCalcTypeCell<>\"A\",F164,MIN(F164,F85))","v":1720}]
["  Noch verfügbare akzeptable Arbeitsstunden für dieses Vorhaben",null,"ABD","-",{"$f":"MAX(E165-E161,0)","v":1720},{"$f":"MAX(F165-F161,0)","v":1720}]
["Dummy Line - Do not Use - Do not Erase",null,null,"Proj",0,0]
["Stunden für sonstige Projekte",null,null,"Proj-ABD",0,0]
["z.Bsp: Projekt Qualifizierung",null,null,"Proj-ABD",0,0]
["z.Bsp: Projekt Vierkanter",null,null,"Proj-ABD",0,0]
[null,null,null,"Proj-ABD",0,0]
[]
[null,null,null,"Proj",0,0]
["Dummy Line - Do not Use - Do not Erase",null,null,"Proj",0,0]
["Summe über alle Projekte im Abrechnungsjahr",null,null,"ABD",{"$f":"E160 + E161 + SUM(E167:E174)","v":0},{"$f":"F160 + F161 + SUM(F167:F174)","v":0}]
["Tatsächlich geleistete Arbeitsstunden",null,null,"A",{"$f":"E85","v":1720},{"$f":"F85","v":1720}]
["Faktor: durchschnittliche Jahresleistungsstunden",null,null,"BD",{"$f":"E164","v":1720},{"$f":"F164","v":1720}]
["Tatsächlich geleistete Arbeitsstunden",null,"ABD","-",{"$f":"E160","v":0},{"$f":"F160","v":0}]
["Akzeptierte geleistete Arbeitsstunden",null,null,"-",{"$f":"MIN(E160,E166)","v":1720},{"$f":"MIN(F160,F166)","v":0}]
["eingereichte Personalkosten (ohne Obergrenze)",null,"ABD","ABD",{"$f":"ROUND(MIN(E160,E166)*E121,2)","v":0},{"$f":"ROUND(MIN(F160,F166)*F121,2)","v":0},{"$f":"E180","v":0},{"$f":"F180","v":0},null,null,null,null,{"$f":"IF(Labour_DataSubmittedCell=\"No\",G180,H180)","v":0}]
["Personalkostenobergrenze",null,"ABD","ABD",{"$f":"E179*E122","v":84619.992400000003},{"$f":"F179*F122","v":0}]
["anrechenbare Personalkosten",null,null,"ABD",{"$f":"ROUND(MIN(E180:E181),2)","v":0},{"$f":"ROUND(MIN(F180:F181),2)","v":0}]
["Abzüge in % (zB nicht förderbarer Gebietskörperschaftsanteil)",null,null,"ABD",0,0]
["eingereichte Personalkosten",null,null,"ABD",{"$f":"ROUND(E182*(1-E183),2)","v":0},{"$f":"ROUND(F182*(1-F183),2)","v":0},{"$f":"E184","v":0},{"$f":"F184","v":0},null,null,null,null,{"$f":"IF(Labour_DataSubmittedCell=\"No\",G184,H184)","v":0}]
["Pauschalsatz in % (für Gemeinkosten)",null,null,"ABD",0,0]
["eingereichte Gemeinkosten in €",null,null,"ABD",{"$f":"ROUND(E184*E185,2)","v":0},{"$f":"ROUND(F184*F185,2)","v":0},{"$f":"E186","v":0},{"$f":"F186","v":0},null,null,null,null,{"$f":"IF(Labour_DataSubmittedCell=\"No\",G186,H186)","v":0}]
["eingereichte Personalkosten inkl. Gemeink. in €",null,null,"ABD",{"$f":"E184+E186","v":0},{"$f":"F184+F186","v":0},{"$f":"E187","v":0},{"$f":"F187","v":0},null,null,null,null,{"$f":"IF(Labour_DataSubmittedCell=\"No\",G187,H187)","v":0}]
[null,null,null,"ABD"]
["Warnung: Durch das Klicken auf \"Eingabe abschließen\" werden\nalle obigen Felder gesperrt. Es sind danach keine Änderungen oder Ergänzungen mehr möglich!",null,null,"ABCD"]
[null,null,null,"ABCD"]
[null,null,null,"ABCD"]
[null,null,null,"ABCD"]
[null,"Ja",null,"ABCD"]
[null,"Nein",null,"ABCD"]
["Eingabe abgeschlossen am 19. Jan. 2022 (19:00)",null,null,"ABCD"]
[null,null,null,"ABCD"]
[null,null,null,"ABCD"]
[null,null,null,"ABCD"]
[null,null,null,"ABCD"]
["Unterschrift",null,null,"ABCD"]
[null,null,null,"ABCD"]
[null,null,null,"ABCD"]
["Von BST im Rahmen der VWK auszufüllen",null,null,"ABCD",null,null,"Summe","Summe"]
["    Stundensatz lt. FW in €/Std",null,"ABCD","-",{"$f":"IF(Labour_SelectedCalcTypeCell=\"C\",IF(E102<=0,0,ROUND(E129/E102,5)),E127)","v":0},{"$f":"E204","v":0}]
["    Stundensatz nach VWK in €/Std",null,"ABCD","-",{"$f":"E204","v":0},{"$f":"IF(Labour_SelectedCalcTypeCell=\"C\",IF(F102<=0,0,ROUND(F130/F102,5)),F128)","v":0}]
["    Stunden lt. Förderwerber",null,"ABCD","-",{"$f":"IF(Labour_SelectedCalcTypeCell=\"C\",E102,E178)","v":0},{"$f":"IF(Labour_SelectedCalcTypeCell=\"C\",F102,F178)","v":0}]
["    Stunden maximal",null,"ABCD","-",{"$f":"E166","v":1720},{"$f":"F166","v":1720}]
["    Stunden effektiv",null,"ABCD","-",{"$f":"MAX(E206:E207)","v":1720},{"$f":"MAX(F206:F207)","v":1720}]
["    Abzüge in % (zB nicht förderbarer Gebietskörperschaftsanteil)",null,"ABCD","-",{"$f":"IF(Labour_SelectedCalcTypeCell=\"C\",E131,E183)","v":0},{"$f":"IF(Labour_SelectedCalcTypeCell=\"C\",F131,F183)","v":0}]
["    Gemeinskostensatz",null,"ABCD","-",{"$f":"IF(Labour_SelectedCalcTypeCell=\"C\",E134,E185)","v":0},{"$f":"IF(Labour_SelectedCalcTypeCell=\"C\",F134,F185)","v":0}]
["Anzahl der zu vermindernden Stunden durch VWK",null,null,"ABCD",0,0,{"$f":"E211","v":0},{"$f":"G211","v":0},null,null,null,null,{"$f":"IF(Labour_DataSubmittedCell=\"No\",G211,H211)","v":0}]
["Abzüge in % vermindert durch VWK",null,null,"ABCD",0,0]
["Anzahl der sanktionsrelevant zu vermindernden Stunden durch VWK",null,null,"ABCD",0,0,{"$f":"E213","v":0},{"$f":"G213","v":0},null,null,null,null,{"$f":"IF(Labour_DataSubmittedCell=\"No\",G213,H213)","v":0}]
["Abzüge in % sanktionsrelevant durch VWK",null,null,"ABCD",0,0]
[null,null,null,"ABCD"]
["förderbare Personalkosten eingereicht laut FW",null,null,"-",{"$f":"ROUND(MIN(E206,E207)*E204*(1-E209),2)","v":0},{"$f":"ROUND(MIN(F206,F207)*F204*(1-F209),2)","v":0},{"$f":"E216","v":0},{"$f":"G216","v":0},null,null,null,null,{"$f":"IF(Labour_DataSubmittedCell=\"No\",G216,H216)","v":0}]
["verminderte Personalkosten nach VWK",null,null,"ABCD",{"$f":"ROUND(MAX(0,MIN((E206-E211),E207)*E204)*(1-E209-E212),2)","v":0},{"$f":"ROUND(MAX(0,MIN((F206-F211),F207)*F205)*(1-F209-F212),2)","v":0},{"$f":"E217","v":0},{"$f":"G217","v":0},null,null,null,null,{"$f":"IF(Labour_DataSubmittedCell=\"No\",G217,H217)","v":0}]
["anrechenbare Personalkosten nach VWK",null,null,"ABCD",{"$f":"ROUND(MAX(0,MIN((E206-E211-E213),E207)*E204)*(1-E209-E212-E214),2)","v":0},{"$f":"ROUND(MAX(0,MIN((F206-F211-F213),F207)*F205)*(1-F209-F212-F214),2)","v":0},{"$f":"E218","v":0},{"$f":"G218","v":0},null,null,null,null,{"$f":"IF(Labour_DataSubmittedCell=\"No\",G218,H218)","v":0}]
[null,null,null,"ABCD"]
["förderbare Personalkosten inkl. Gemeinkosten eingereicht laut FW",null,null,"-",{"$f":"ROUND(E216*(1+E210),2)","v":0},{"$f":"ROUND(F216*(1+F210),2)","v":0},{"$f":"E220","v":0},{"$f":"G220","v":0},null,null,null,null,{"$f":"IF(Labour_DataSubmittedCell=\"No\",G220,H220)","v":0}]
["verminderte Personalkosten inkl. Gemeinkosten nach VWK",null,null,"ABCD",{"$f":"ROUND(E217*(1+E210),2)","v":0},{"$f":"ROUND(F217*(1+F210),2)","v":0},{"$f":"E221","v":0},{"$f":"G221","v":0},null,null,null,null,{"$f":"IF(Labour_DataSubmittedCell=\"No\",G221,H221)","v":0}]
["anrechenbare Personalkosten inkl. Gemeinkosten nach VWK",null,null,"ABCD",{"$f":"ROUND(E218*(1+E210),2)","v":0},{"$f":"ROUND(F218*(1+F210),2)","v":0},{"$f":"E222","v":0},{"$f":"G222","v":0},null,null,null,null,{"$f":"IF(Labour_DataSubmittedCell=\"No\",G222,H222)","v":0}]
[null,null,null,"ABCD"]
["Anzahl der zu vermindernden Stunden durch VOK",null,null,"ABCD",0,0,{"$f":"E224","v":0},{"$f":"G224","v":0},null,null,null,null,{"$f":"IF(Labour_DataSubmittedCell=\"No\",G224,H224)","v":0}]
["Abzüge in % vermindert durch VOK",null,null,"ABCD",0,0]
["Anzahl der sanktionsrelevant zu vermindernden Stunden durch VOK",null,null,"ABCD",0,0,{"$f":"E226","v":0},{"$f":"G226","v":0},null,null,null,null,{"$f":"IF(Labour_DataSubmittedCell=\"No\",G226,H226)","v":0}]
["Abzüge in % sanktionsrelevant durch VOK",null,null,"ABCD",0,0]
[{"$f":"COUNT(E224:F224)+COUNT(E225:F225)","v":4},null,null,"-",null,null,null,{"$f":"G228","v":0},null,null,null,null,{"$f":"IF(Labour_DataSubmittedCell=\"No\",G228,H228)","v":0}]
[{"$f":"COUNT(E224:F226)+COUNT(E227:F227)","v":8},null,null,"-",null,null,null,{"$f":"G229","v":0},null,null,null,null,{"$f":"IF(Labour_DataSubmittedCell=\"No\",G229,H229)","v":0}]
[null,null,null,"ABCD"]
["verminderte Personalkosten nach VOK",null,null,"ABCD",{"$f":"IF($A228>0,ROUND(MAX(0,MIN((E206-E211-E213-E224),E207)*E204)*(1-E209-E212-E214-E225),2),0)","v":0},{"$f":"IF($A229>0,ROUND(MAX(0,MIN((F206-F211-F213-F224),F207)*F205)*(1-F209-F212-F214-F225),2),0)","v":0},{"$f":"E231","v":0},{"$f":"G231","v":0},null,null,null,null,{"$f":"IF(Labour_DataSubmittedCell=\"No\",G231,H231)","v":0}]
["anrechenbare Personalkosten nach VOK",null,null,"ABCD",{"$f":"IF($A228>0,ROUND(MAX(0,MIN((E206-E211-E213-E224-E226),E207)*E204)*(1-E209-E212-E214-E225-E227),2),0)","v":0},{"$f":"IF($A229>0,ROUND(MAX(0,MIN((F206-F211-F213-F224-F226),F207)*F205)*(1-F209-F212-F214-F225-F227),2),0)","v":0},{"$f":"E232","v":0},{"$f":"G232","v":0},null,null,null,null,{"$f":"IF(Labour_DataSubmittedCell=\"No\",G232,H232)","v":0}]
[null,null,null,"ABCD"]
["verminderte Personalkosten inkl. Gemeinkosten nach VOK",null,null,"ABCD",{"$f":"IF(E231=\"\",0,ROUND(E231*(1+E210),2))","v":0},{"$f":"IF(F231=\"\",0,ROUND(F231*(1+F210),2))","v":0},{"$f":"E234","v":0},{"$f":"G234","v":0},null,null,null,null,{"$f":"IF(Labour_DataSubmittedCell=\"No\",G234,H234)","v":0}]
["anrechenbare Personalkosten inkl. Gemeinkosten nach VOK",null,null,"ABCD",{"$f":"IF(E232=\"\",0,ROUND(E232*(1+E210),2))","v":0},{"$f":"IF(F232=\"\",0,ROUND(F232*(1+F210),2))","v":0},{"$f":"E235","v":0},{"$f":"G235","v":0},null,null,null,null,{"$f":"IF(Labour_DataSubmittedCell=\"No\",G235,H235)","v":0}]
[null,null,null,"ABCD"]
["Anzahl ermittelte Stunden gemäß Art. 35",null,null,"ABCD",{"$f":"IF(E204=0,0,E232/E204)","v":0},{"$f":"IF(F205=0,0,F232/F205)","v":0}]
["ermittelte Kosten gemäß Art. 35 VWK",null,null,"-",{"$f":"E218","v":0},{"$f":"F218","v":0},{"$f":"E238","v":0},{"$f":"F238","v":0},null,null,null,null,{"$f":"IF(Labour_DataSubmittedCell=\"No\",G238,H238)","v":0}]
["ermittelte Kosten gemäß Art. 35",null,null,"ABCD",{"$f":"E237*E204","v":0},{"$f":"F237*F205","v":0},{"$f":"E239","v":0},{"$f":"F239","v":0},null,null,null,null,{"$f":"IF(Labour_DataSubmittedCell=\"No\",G239,H239)","v":0}]
["Sanktion in % gemäß Art. 35 (VO 640/2014)",null,null,"ABCD",null,null,{"$f":"E240","v":0}]
["sanktionsrelevante Kosten gemäß Art. 35 VWK ",null,null,"-",{"$f":"E238*E240","v":0},{"$f":"F238*F240","v":0},{"$f":"E241","v":0},{"$f":"F241","v":0},null,null,null,null,{"$f":"IF(Labour_DataSubmittedCell=\"No\",G241,H241)","v":0}]
["sanktionsrelevante Kosten gemäß Art. 35",null,null,"ABCD",{"$f":"E239*E240","v":0},{"$f":"F239*F240","v":0},{"$f":"E242","v":0},{"$f":"F242","v":0},null,null,null,null,{"$f":"IF(Labour_DataSubmittedCell=\"No\",G242,H242)","v":0}]
["sanktionsrelevante Kosten gemäß Art. 35 VWK Gemeinkosten",null,null,"-",{"$f":"E241*E210","v":0},{"$f":"F241*F210","v":0},{"$f":"E243","v":0},{"$f":"F243","v":0},null,null,null,null,{"$f":"IF(Labour_DataSubmittedCell=\"No\",G243,H243)","v":0}]
["sanktionsrelevante Kosten gemäß Art. 35 Gemeinkosten",null,null,"ABCD",{"$f":"E242*E210","v":0},{"$f":"F242*F210","v":0},{"$f":"E244","v":0},{"$f":"F244","v":0},null,null,null,null,{"$f":"IF(Labour_DataSubmittedCell=\"No\",G244,H244)","v":0}]
[null,null,null,"ABCD"]
["Verwendete Abkürzungen:\n   FW ….. Förderungswerber\n   BST .... Bewilligende Stelle\n   VWK .. Verwaltungskontrolle\n   VOK … Vor-Ort-Kontrolle",null,null,"ABCD"]

{"sheet":"Notizen","index":15,"n_rows":16,"n_cols":12,"rows_kept":16,"cut":false,"hidden":false,"merged":[[13,0,13,2],[13,3,13,4],[13,5,13,6],[8,0,8,2],[8,3,8,6],[10,0,10,2],[10,3,10,6],[12,0,12,2],[12,3,12,4],[12,5,12,6],[0,0,0,11],[2,0,2,2],[2,3,2,6],[4,0,4,2],[4,3,4,6],[6,0,6,2],[6,3,6,6]]}
["Zahlungsantrag - Notizen und Anmerkungen"]
[null,null,null,null,null,null,null,null,null,null,null,"RL/AMA v469.25 / Jan. 2022"]
["Betriebs-/Klientennummer: ",null,null,{"$f":"TRIM('Auswahl Belegaufstellungen'!Stm_ApplicantID)","v":""}]
[]
["Förderungswerber: ",null,null,{"$f":"TRIM('Auswahl Belegaufstellungen'!Stm_ApplicantName)","v":""}]
[]
["Antragsnummer: ",null,null,{"$f":"TRIM('Auswahl Belegaufstellungen'!Stm_ApplicationID)","v":""}]
[]
["Fördergegenstand: "]
[]
["Vorsteuerabzugsberechtigung: ",null,null,{"$f":"TRIM('Auswahl Belegaufstellungen'!Stm_TaxDeduct)","v":"Ja"}]
[]
["Genehmigter Zeitraum für  ",null,null,"Beginn",null,"Ende"]
["Kostenanerkennung: ",null,null,{"$f":"IF(TRIM('Auswahl Belegaufstellungen'!Stm_SupportPeriodStart)=\"\",\"\",'Auswahl Belegaufstellungen'!Stm_SupportPeriodStart)","v":""},null,{"$f":"IF(TRIM('Auswahl Belegaufstellungen'!Stm_SupportPeriodEnd)=\"\",\"\",'Auswahl Belegaufstellungen'!Stm_SupportPeriodEnd)","v":""}]
[]
["Hier ist Raum für freie Notizen, Anmerkungen und Nebenrechnungen…"]

{"sheet":"TEMPLATE Notizen","index":16,"n_rows":16,"n_cols":12,"rows_kept":16,"cut":false,"hidden":true,"merged":[[8,0,8,2],[8,3,8,6],[13,0,13,2],[13,3,13,4],[13,5,13,6],[10,0,10,2],[10,3,10,6],[12,0,12,2],[12,3,12,4],[12,5,12,6],[6,0,6,2],[6,3,6,6],[0,0,0,11],[2,0,2,2],[2,3,2,6],[4,0,4,2],[4,3,4,6]]}
["Zahlungsantrag - Notizen und Anmerkungen"]
[null,null,null,null,null,null,null,null,null,null,null,"RL/AMA v469.25 / Jan. 2022"]
["Betriebs-/Klientennummer: "]
[]
["Förderungswerber: "]
[]
["Antragsnummer: "]
[]
["Fördergegenstand: "]
[]
["Vorsteuerabzugsberechtigung: ",null,null,"Ja"]
[]
["Genehmigter Zeitraum für  ",null,null,"Beginn",null,"Ende"]
["Kostenanerkennung: "]
[]
["Hier ist Raum für freie Notizen, Anmerkungen und Nebenrechnungen…"]

{"sheet":"TABLE Beschäftigungsgruppen","index":17,"n_rows":19,"n_cols":7,"rows_kept":19,"cut":false,"hidden":true,"merged":[]}
["Beschäftigungsgruppe","Gesamt-Faktor","Davon von HBM-Grundlage unabhängig","von HBM- Grundlage abhängig (bruttojahresbezug oder asvg_hoechstbem_grundl je nachdem was kleiner ist)","Regelarbeitsstunden/Jahr (ohne Überstundenpauschale)","Regelarbeitsstunden/Jahr (mit Überstundenpauschale)","Fixer Stundensatz"]
["Personalabrechnung bis 2020",1.3,0.09,0.21,1800,1980,0]
["„normale“ Beschäftigungsgruppen",1.295676,8.5281999999999997E-2,0.210394,1720,1900,0]
["Dienstnehmer begünstigter Körperschaften (gemeinnützig gem §§34 bis 37 u. §§ 39 bis 47 BAO) vollversichert",1.263128,5.2574999999999997E-2,0.21055300000000002,1720,1900,0]
["Freie Dienstnehmer begünstigter Körperschaften (gemeinnützig gem §§34 bis 37 u. §§ 39 bis 47 BAO) vollversichert",1.258842,5.257400000000001E-2,0.20626800000000001,1720,1900,0]
["Geringfügige (freie) Dienstnehmer begünstigter Körperschaften (gemeinnützig gem §§34 bis 37 u. §§ 39 bis 47 BAO) mit DAG",1.228159,0.21657400000000002,1.1585000000000002E-2,1720,1900,0]
["Geringfügige (freie) Dienstnehmer begünstigter Körperschaften (gemeinnützig gem §§34 bis 37 u. §§ 39 bis 47 BAO) ohne DAG",1.0641590000000001,5.257400000000001E-2,1.1585000000000002E-2,1720,1900,0]
["Freie Dienstnehmer (vollversichert)",1.2914330000000001,8.5281999999999997E-2,0.206151,1720,1900,0]
["Lehrlinge ab 1.1.2016",1.241025,8.6724999999999997E-2,0.15430000000000002,1720,1900,0]
["Behinderte nach dem Behinderteneinstellungsgesetz (Dienstnehmer, vollversichert)",1.225695,1.5299999999999998E-2,0.210395,1720,1900,0]
["Behinderte nach dem Behinderteneinstellungsgesetz (freie Dienstnehmer, vollversichert)",1.221452,1.5299999999999998E-2,0.206152,1720,1900,0]
["Geringfügig (freie) Beschäftige nach dem Behinderteneinstellungs-gesetz (mit DAG)",1.190769,0.17930000000000001,1.1469E-2,1720,1900,0]
["Geringfügig (freie) Beschäftige nach dem Behinderteneinstellungs-gesetz (ohne DAG)",1.026769,1.5299999999999998E-2,1.1469E-2,1720,1900,0]
["Geringfügige Dienstnehmer und geringfügige freie Dienstnehmer mit pauschalem DAG",1.260751,0.24928199999999998,1.1469E-2,1720,1900,0]
["Geringfügige Dienstnehmer und geringfügige freie Dienstnehmer ohne pauschalem DAG",1.096751,8.5281999999999997E-2,1.1469E-2,1720,1900,0]
["Beamte",1.2148239999999999,4.5150999999999997E-2,0.16967300000000002,1720,1900,0]
["Vertragsbedienstete (vollversichert)",1.2595460000000001,6.0450999999999998E-2,0.19909500000000002,1720,1900,0]
["Vertragsbedienstete (geringfügig)",1.1913370000000001,0.18680000000000002,4.5370000000000002E-3,1720,1900,0]
["fallweise geringfügig Beschäftigte  ",0,-1,0,1720,1900,24]

{"sheet":"TABLE Gehaltsgrenzen","index":18,"n_rows":79,"n_cols":8,"rows_kept":79,"cut":false,"hidden":true,"merged":[]}
[2022,"[1] Beamten","[2] ASVG"]
["Jahr ","A1/9/1/2","HöchstbeitragsGL"]
[2007,64120.14,53760,{"$f":"B3/14","v":4580.01},{"$f":"C3/14","v":3840}]
[2008,65829.600000000006,55020,4702.1142857142859,3930]
[2009,68166.820000000007,56280,4869.0585714285717,4020]
[2010,68858.89,57540,4918.4921428571424,4110]
[2011,69450,58800,4960.7142857142853,4200]
[2012,71290,59220,5092.1428571428569,4230]
[2013,71280,62160,5091.4285714285716,4440]
[2014,72380,63420,5170,4530]
[2015,73670,65100,5262.1428571428569,4650]
[2016,74870,68040,5347.8571428571431,4860]
[2017,77610,69720,5543.5714285714284,4980]
[2018,79320,71820,5665.7142857142853,5130]
[2019,81570,73080,5826.4285714285716,5220]
[2020,83410,{"$f":"5370*14","v":75180},5957.8571428571431,5370]
[2021,84620,77700,6044.2857142857147,5550]
[2022,87160,79380,6225.7142857142853,5670]
[2023,100000,80000,7142.8571428571431,5714.2857142857147]
[]
["ACHTUNG: Wenn Daten für ein neues Jahr eingetragen werden, muss auch in Zelle A1 die Jahreszahl angepasst werden."]
["Sonst beschwert sich die Personalkostenaufstellung weiter über ungültige Höchstwerte."]
[]
["[1] Jahresbruttogehälter für Beamte der allgemeinen Verwaltung der Dienstklasse VII / Gehaltstufe 2 (lt. Gehaltsgesetz - GehG §118(5))"]
[null,"https://www.ris.bka.gv.at/NormDokument.wxe?Abfrage=Bundesnormen&Gesetzesnummer=10008163&FassungVom=2015-09-28&Paragraf=118"]
["Inkrafttretensdatum","Außerkrafttretensdatum",null,null,null,"12 Monate","14 Monate","Jahr/14Mon."]
["2007-01-01","2007-12-31",3065.4,null,2007,{"$f":"12*C27","v":36784.800000000003},{"$f":"F27*14/12","v":42915.600000000006},{"$f":"B3/G27","v":1.4940986494421606}]
["2008-01-01","2008-12-31",3148.2,null,2008,{"$f":"12*C28","v":37778.399999999994},44074.799999999988,1.4935881728334564]
["2009-01-01","2009-12-31",3260,null,2009,{"$f":"12*C29","v":39120},45640,1.4935762489044699]
["2010-01-01","2010-12-31",3293.3,null,2010,{"$f":"12*C30","v":39519.600000000006},46106.200000000012,1.4934843903856745]
["2011-01-01","2012-01-31",3321.3,null,2011,{"$f":"12*C31","v":39855.600000000006},46498.200000000012,1.4936062041111264]
["2012-02-01","2014-02-28",3417.4,null,2012,{"$f":"C31+11*C32","v":40912.700000000004},47731.483333333337,1.4935634726066547]
["2014-03-01","2015-02-11",3479.7,null,2013,{"$f":"12*C32","v":41008.800000000003},47843.600000000006,1.4898544423914586]
["2015-02-12",null,3479.7,null,2014,{"$f":"2*C32+10*C33","v":41631.800000000003},48570.433333333342,1.4902070052219696]
[null,null,null,null,2015,{"$f":"1.4*C33+10.6*C34","v":41756.400000000001},48715.799999999996,1.5122403819705312]
[null,null,null,null,2016]
["Seit 2017(?) heisst es nicht mehr Dienstklasse VII/Gehaltsstufe 2, sondern Verwendungsgruppe A1/Gehaltsstufe 9/Funktionsgruppe 1/Funktionsstufe 2"]
[]
["Es ist unklar wie genau man von den im Gesetz aufgeführten Monatsgehältern zu den in der obigen Tabelle aufgeführten"]
["Jahresbruttogehältern kommt. Vermutlich muss man die passenden Dienstgeberbeiträge aufschlagen, aber wie genau…"]
["Näherungsweise passend wäre: 14 Monatsgehälter + Sozialversicherung Aufschlag = Jahresgehalt ?!?"]
[]
["[2] ASVG (Allgem. SozialVersicherungsGesetz) Höchstbeitragsgrundlage für die Berechnung der Beiträge zur Sozialversicherung"]
[null,"https://de.wikipedia.org/wiki/Höchstbeitragsgrundlage"]
[]
["Beitragsrechtliche Sätze 2016: (http://sozialversicherung.at --> ÜBER UNS --> Zahlen - Daten - Fakten / Aktuelle Werte)"]
[null,"https://www.sozialversicherung.at/portal27/sec/portal/esvportal/content/contentWindow?contentid=10008.626564&action=b&cacheability=PAGE&version=1450778169"]
[]
[2007]
[2008]
[2009]
[2010]
[2011]
[2012]
[2013]
[2014]
[2015]
[2016]
[]
["VO 640/2014 = Delegierte Verordnung (EU) Nr. 640/2014 der Kommission vom 11. März 2014 \n"]
["https://www.bmlfuw.gv.at/dam/jcr:05e477c3-6d14-412a-beb1-93380de11239/640_2014.pdf"]
["http://eur-lex.europa.eu/legal-content/de/ALL/?uri=CELEX%3A32014R0640"]
[]
[]
["Kostenlimit für Beamte 2021 (allgem. Verwaltung - Dienstklasse VII/2 ohne Überstundenpauschale)"]
[null,null,null,"Betrag/Monat","Monate/Jahr","Betrag/Jahr"]
["Gehalt",null,null,4113.2,14,{"$f":"D67*E67","v":57584.799999999996}]
["Funktionszulage",null,null,182.4,14,{"$f":"D68*E68","v":2553.6}]
["Summe Gehalt/Zulage",null,null,{"$f":"SUM(D67:D68)","v":4295.5999999999995},null,{"$f":"SUM(F67:F68)","v":60138.399999999994}]
[]
["Dienstgeberbeiträge"]
["Krankenversicherung",null,3.5349999999999999E-2,{"$f":"C72*D$69","v":151.84945999999997},14,{"$f":"D72*E72","v":2125.8924399999996}]
["Wohnbauförderung",null,5.0000000000000001E-3,{"$f":"C73*D$69","v":21.477999999999998},12,{"$f":"D73*E73","v":257.73599999999999}]
["Unfallversicherung",null,4.7000000000000002E-3,{"$f":"C74*D$69","v":20.189319999999999},12,{"$f":"D74*E74","v":242.27184}]
["Familienlastenausgl.",null,3.9E-2,{"$f":"C75*D$69","v":167.52839999999998},12,{"$f":"D75*E75","v":2010.3407999999997}]
["Pensionsvorsorge (Pauschale)",null,0.33,{"$f":"C76*D$69","v":1417.5479999999998},14,{"$f":"D76*E76","v":19845.671999999999}]
["Summe Dienstgeberbeiträge",null,null,null,null,{"$f":"SUM(F72:F76)","v":24481.913079999998}]
[]
["Summe total (gerundet)",null,null,null,null,{"$f":"ROUND(F69+F77,0)","v":84620}]